{"text_format":"1","workbook":"xlsx","n_sheets":4,"sheets":["2015-1 ","2015-2 ","Légende","stat"],"not_rendered":{"charts":0,"images":0,"macros":1,"external_links":1,"defined_names":6,"comments":3,"pivot_tables":0},"unopened":[],"bounds":{"document_bytes":16777216,"sheet_cells":100000,"rows_first":2000,"rows_last":500,"rows_between":2000,"halvings":0,"cell_chars":16384,"cell_head_chars":4096},"cells_cut":0,"cells_raw":0,"read":"whole","date_system":"1900"}

{"sheet":"2015-1 ","index":0,"n_rows":91,"n_cols":195,"rows_kept":91,"cut":false,"hidden":false,"merged":[[0,157,0,186],[7,143,7,145],[0,6,0,36],[0,37,0,64],[0,65,0,95],[0,96,0,125],[0,126,0,156],[3,1,3,5],[4,1,4,5],[5,1,5,5],[6,94,6,121],[7,1,7,5],[13,162,13,177],[8,1,8,5],[9,1,9,5],[10,1,10,5],[10,17,10,18],[10,41,10,49],[10,53,10,58],[17,1,17,5],[10,143,10,145],[11,1,11,5],[12,1,12,5],[13,1,13,5],[13,109,13,112],[14,1,14,5],[15,1,15,5],[16,1,16,5],[16,53,16,58],[16,143,16,145],[18,1,18,5],[19,1,19,5],[19,42,19,47],[19,130,19,132],[19,146,19,156],[37,1,37,2],[19,171,19,177],[20,1,20,5],[21,1,21,5],[22,1,22,5],[23,1,24,5],[25,1,26,6],[19,160,19,168],[30,1,30,5],[30,110,30,111],[33,1,33,2],[34,1,34,5],[30,143,30,145],[46,1,46,5],[38,1,38,5],[41,1,41,2],[42,1,42,5],[42,32,42,35],[45,1,45,2],[50,1,50,5],[70,1,70,5],[54,1,54,5],[54,53,54,58],[62,1,62,5],[65,1,65,2],[66,1,66,5],[69,1,69,2],[53,1,53,2],[83,171,83,177],[86,1,86,3],[75,170,75,177],[78,1,78,3],[79,1,79,5],[79,53,79,58],[79,143,79,145],[79,171,79,177],[75,143,75,145],[75,1,75,5],[75,53,75,58],[75,109,75,111],[38,143,38,145],[87,1,87,5],[90,1,90,3],[82,1,82,3],[83,1,83,5],[83,111,83,112],[83,143,83,145],[73,1,73,2],[74,1,74,5],[54,110,54,111],[57,1,57,2],[58,1,58,5],[58,109,58,112],[61,1,61,2],[46,53,46,58],[49,1,49,2]]}
[null,null,null,null,null,null,"Janvier",null,null,null,null,null,null,null,null,null,null,null,null,null,null,null,null,null,null,null,null,null,null,null,null,null,null,null,null,null,null,"Février",null,null,null,null,null,null,null,null,null,null,null,null,null,null,null,null,null,null,null,null,null,null,null,null,null,null,null,"Mars",null,null,null,null,null,null,null,null,null,null,null,null,null,null,null,null,null,null,null,null,null,null,null,null,null,null,null,null,null,null,"Avril",null,null,null,null,null,null,null,null,null,null,null,null,null,null,null,null,null,null,null,null,null,null,null,null,null,null,null,null,null,"Mai",null,null,null,null,null,null,null,null,null,null,null,null,null,null,null,null,null,null,null,null,null,null,null,null,null,null,null,null,null,null,"Juin"]
[null,null,null,null,null,null,1,2,3,4,5,6,7,8,9,10,11,12,13,14,15,16,17,18,19,20,21,22,23,24,25,26,27,28,29,30,31,1,2,3,4,5,6,7,8,9,10,11,12,13,14,15,16,17,18,19,20,21,22,23,24,25,26,27,28,1,2,3,4,5,6,7,8,9,10,11,12,13,14,15,16,17,18,19,20,21,22,23,24,25,26,27,28,29,30,31,1,2,3,4,5,6,7,8,9,10,11,12,13,14,15,16,17,18,19,20,21,22,23,24,25,26,27,28,29,30,1,2,3,4,5,6,7,8,9,10,11,12,13,14,15,16,17,18,19,20,21,22,23,24,25,26,27,28,29,30,31,1,2,3,4,5,6,7,8,9,10,11,12,13,14,15,16,17,18,19,20,21,22,23,24,25,26,27,28,29,30]
[null,null,null,null,null,null,"Me","Je","Ve","Sa","Lu","Ma","Me","Je","Ve","Sa","Di","Lu","Ma","Me","Je","Ve","Sa","Di","Lu","Ma","Me","Je","Ve","Sa","Di","Lu","Ma","Me","Je","Ve","Sa","Di","Lu","Ma","Me","Je","Ve","Sa","Di","Lu","Ma","Me","Je","Ve","Sa","Di","Lu","Ma","Me","Je","Ve","Sa","Di","Lu","Ma","Me","Je","Ve","Sa","Di","Lu","Ma","Me","Je","Ve","Sa","Di","Lu","Ma","Me","Je","Ve","Sa","Di","Lu","Ma","Me","Je","Ve","Sa","Di","Lu","Ma","Me","Je","Ve","Sa","Di","Lu","Ma","Me","Je","Ve","Sa","Di","Lu","Ma","Me","Je","Ve","Sa","Di","Lu","Ma","Me","Je","Ve","Sa","Di","Lu","Ma","Me","Je","Ve","Sa","Di","Lu","Ma","Me","Je","Ve","Sa","Di","Lu","Ma","Me","Je","Ve","Sa","Di","Lu","Ma","Me","Je","Ve","Sa","Di","Lu","Ma","Me","Je","Ve","Sa","Di","Lu","Ma","Me","Je","Ve","Sa","Di","Lu","Ma","Me","Je","Ve","Sa","Di","Lu","Ma","Me","Je","Ve","Sa","Di","Lu","Ma","Me","Je","Ve","Sa","Di","Lu","Ma","Me","Je","Ve","Sa","Di","Lu","Ma"]
[null,"HGI",null,null,null,null,null,null,null,"R","R","R","T","T","Réu",null,"Hou","Hou","Hou","Hou","Hou","Hou","Hou",null,"T","T","T","T","T",null,null,"T","T","T","T","T",null,"R","R","R","R","T","T","Asie","Asie","Asie","Asie","Asie","Asie","Asie","Asie","Asie","T","T","T","T","T",null,"C","C","C","C","C","C","C","C","C","T","T","T","T",null,null,"T","T","T","T","T","T","T","T","T","T","T","T",null,null,"T","T","T","T","T",null,null,"T","T","T","T","T",null,"T","Asie","Asie","Asie","Asie","Asie","Asie","Asie","Asie","Asie","Asie","Asie","Asie","Asie","T","T","T","T","T","T",null,null,"R","T","R","R","R","R","R","FTC","FTC","FTC","FTC","FTC","FTC","FTC","FTC","T","T",null,null,null,"T","T","R","GVA","GVA","R",null,null,null,"T","T","T","T","T",null,"T","T","T","T","T",null,null,"T","T","T","T","T",null,null,"T","R","R","T","T",null,"T","Asie","Asie","Asie","Asie","Asie","Asie","Asie","Asie","Asie"]
[]
[null,"DNT",null,null,null,null,null,null,null,null,"T","TT","TT","T","T",null,null,"T","T","T","T","T","T",null,"T","T","T","T","R","R","R","T","T","T","T","T",null,null,"T","T","T","R","R",null,null,"T","T","T","T","T","T","T","T","T","T","T","T",null,"T","T","T","T","T","T",null,null,"T","T","T","T","R","R","R","R","T","T","T","T","R","R","R","R","R","R","R","R","R","R","R","R","R","R",null,null,"T","T","R","R","C","R","R","R","T","T","T","T",null,null,"T","T","T","T","T",null,null,"T","T","T","T","T",null,null,"T","TT","T","T",null,"T","T","TT","TT","TT","TT","T","T","T","T","T","TT",null,"T",null,null,"T","T","T","T","T","C","C","C","C","C","C","C","C","C","C","C","C","C","C","C","C","R","R","R","R","R","R","R","R","T","T","T","T",null,null,"T","T","T","T","T",null,null,"T","T"]
[null,null,null,null,null,null,null,null,null,null,null,null,null,null,null,null,null,null,"Simu",null,null,null,null,null,"Simu",null,null,null,null,null,null,"Simu",null,null,null,null,null,null,null,null,null,null,null,null,null,null,null,null,null,null,null,null,null,null,null,null,null,null,null,null,null,null,null,null,null,null,null,null,null,null,null,null,null,null,null,null,null,null,null,null,null,null,null,null,null,null,null,null,null,null,null,null,null,"UTC","LBG Closure",null,null,null,null,null,null,null,null,null,null,null,null,null,null,null,null,null,null,null,null,null,null,null,null,null,null,null,null,null,null,null,null,null,null,null,null,"Réu?",null,null,null,null,null,null,null,null,null,null,null,null,null,null,null,null,null,null,null,null,null,null,null,null,null,null,null,null,null,null,null,null,null,null,null,null,null,null,null,null,null,null,null,null,null,null,null,null,null,null,null,null,null,null,null,"Congés Fermeture été DA"]
[null,"F900 EASy",null,null,null,null,null,null,null,null,null,null,"D","D",null,null,null,null,null,null,"P",null,null,null,null,null,null,null,null,null,null,null,null,null,null,null,null,null,"P",null,null,"T","P",null,null,"P",null,null,null,null,"P","P","P","P",null,null,null,null,null,null,null,null,null,null,null,null,null,null,null,null,null,"S","S","S","S","S","S","S","S","S","S","S","S","S","S","S","S","S","S","S","S","S","S","S","S",null,null,null,null,null,null,null,null,null,null,null,null,null,null,null,null,null,null,null,null,null,null,null,null,null,null,null,null,null,null,null,null,null,"P","P","S","S",null,null,null,null,"S","S",null,null,null,null,"Y","Ebace",null,null,"Y",null,null,null,null,null,null,null,null,null,null,null,"D",null,null,null,null,null,null,null,null,null,null,null,null,null,null,null,null,null,null,null,null,null,null,null,null,null,null,"P","P","lundi 27 juillet 2015 au lundi"]
[null,"s/n 281",null,null,null,null,null,null,null,null,null,null,null,null,null,null,null,null,null,null,null,null,null,null,null,null,null,null,null,null,null,null,null,null,null,null,null,null,null,null,null,null,null,null,null,null,null,null,null,null,null,null,null,null,null,null,null,null,null,null,null,null,null,null,null,null,null,null,null,null,null,null,null,null,null,null,null,null,null,null,null,null,null,null,null,null,null,null,null,null,null,null,null,null,null,null,null,null,null,null,null,null,null,null,null,null,null,null,null,null,null,null,null,null,null,null,null,null,null,null,null,null,null,null,null,null,null,null,null,null,null,null,null,null,null,null,null,null,null,null,null,null,null,null,null,null,null,null,null,null,null,null,null,null,null,null,null,null,null,null,null,null,null,null,null,null,null,null,null,null,null,null,null,null,null,null,null,null,null,null,null,null,null,null,null,null,null,"17 août 2015 inclus"]
[null,{"$f":"SUM(H10:FP10)","v":102.3},null,null,null,null,null,null,null,null,null,null,null,null,null,null,null,null,null,null,8.6999999999999993,null,null,null,null,null,null,null,null,null,null,null,null,null,null,null,null,null,4.0999999999999996,null,null,1.8,2,null,null,2.5,null,null,null,null,6.6,7.2,4,4.5,null,null,null,null,null,null,null,null,null,null,null,null,null,null,null,null,null,null,null,null,null,null,null,null,null,9,null,null,null,9,null,null,null,null,null,null,null,0.5,null,8.8000000000000007,0.8,null,null,null,null,null,null,null,null,null,null,null,null,null,null,null,null,null,null,null,null,null,null,null,null,null,null,null,null,null,null,null,null,null,7.8,6.8,4.7,4.5999999999999996,null,null,null,null,0.9,4,null,null,null,null,1,null,null,null,1,null,null,null,null,null,null,null,null,null,null,null,2,null,null,null,null,null,null,null,null,null,null,null,null,null,null,null,null,null,null,null,null,null,null,null,null,null,null,6.5,7.1]
[null,"F2TH EASy",null,null,null,null,null,null,null,null,null,"D","D","D",null,null,null,null,null,null,null,null,null,"D","D",null,"D",null,null,null,null,null,null,null,"P",null,null,null,null,null,"T","Maintenance F-HLXS",null,null,null,null,null,null,null,null,null,"Y","Y","Aéro India",null,null,null,null,null,"P",null,null,"D","D",null,null,null,null,null,null,null,null,null,null,null,null,null,null,null,null,null,null,null,null,"D","D",null,"D",null,"D",null,null,null,null,null,null,null,null,null,null,null,null,null,null,null,null,null,null,null,null,null,null,null,null,null,null,"D","D","D",null,null,null,null,"D","D",null,null,null,null,null,null,null,null,null,null,null,null,null,null,null,"T",null,"Y","Ebace",null,null,"Y",null,null,null,null,null,null,null,null,null,null,null,null,null,null,null,null,null,null,null,null,null,null,null,null,null,null,null,null,null,null,null,null,"M"]
[null,"s/n 269",null,null,null,null,null,null,null,null,null,null,null,null,null,null,null,null,null,null,null,null,null,null,null,null,null,null,null,null,null,null,null,null,null,null,null,null,null,null,null,null,null,null,null,null,null,null,null,null,null,null,null,null,null,null,null,null,"P"]
[null,{"$f":"SUM(G13:FP13)","v":83.300000000000011},null,null,null,null,null,null,null,null,null,0.8,5.3,2.9,null,null,null,null,null,null,null,null,null,1.1000000000000001,4.0999999999999996,null,5.4,null,null,null,null,null,null,null,2,null,null,null,null,null,2.4,null,null,null,null,null,null,null,null,null,null,9.5,null,null,0.9,1.2,null,null,4.5,8,null,null,1.2,1.9,null,null,null,null,null,null,null,null,null,null,null,null,null,null,null,null,null,null,null,null,2.2000000000000002,2.5,null,2.7,null,2.2000000000000002,null,null,null,null,null,null,null,null,null,null,null,null,null,null,null,null,null,null,null,null,null,null,null,null,null,null,1.6,2,2.8,null,null,null,null,9.6999999999999993,3.2,null,null,null,null,null,null,null,null,null,null,null,null,null,null,null,1.2,null,1,null,null,null,1,null,null,null,null,null,null,null,null,null,null,null,null,null,null,null,null,null,null,null,null,null,null,null,null,null,null,null,null,null,null,null,null,1.5]
[null,"OCCAS",null,null,null,null,null,null,null,null,null,null,null,null,"M",null,null,"M",null,null,null,null,null,null,"M",null,null,null,null,null,null,null,null,null,"Y",null,null,null,"D","M","Y",null,"D","D","D","D","D","D","D",null,null,null,"T","D","D","D",null,null,null,null,"M",null,"M","M",null,null,"Y",null,"P","M",null,null,null,"DGI",null,"P","P",null,null,null,null,null,null,null,null,null,null,null,"T","P",null,null,null,null,null,"F","F","F",null,"D","D","D","D","D","D","D","D","D","D","ABACE",null,null,null,"D","D","D","D","D","D","D","D","D","D","D","D","D",null,"D?","D?","Y","T",null,"T",null,null,null,"T","Y","T",null,"Y",null,null,"Y","P","T",null,"T",null,null,null,"Y","T","Y",null,null,null,null,null,"Y",null,"Y","Practical Training Bordeaux",null,null,null,null,null,null,null,null,null,null,null,null,null,null,null,"Y","M","T",null,null,null,null,null,"M"]
[null,null,null,null,null,null,null,null,null,null,null,null,null,null,null,null,null,null,null,null,null,null,null,null,null,null,null,null,null,null,null,null,null,null,null,null,null,null,null,null,null,null,null,null,null,null,null,null,"Y",null,null,null,null,null,null,"M",null,null,null,null,null,null,null,null,null,null,null,null,null,null,null,null,null,null,null,null,null,null,null,null,null,null,null,null,null,null,null,null,"T",null,null,null,null,null,null,null,null,null,null,null,null,null,null,null,"Y",null,null,null,null,null,null,null,"M",null,null,"M",null,null,null,null,null,null,null,"D",null,null,null,null,null,"S",null,null,"D",null,null,null,"T",null,"M?",null,null,null,null,null,"D","D",null,null,null,null,null,null,null,null,null,null,null,null,null,null,null,null,null,null,null,null,null,"D","D","D","D",null,null,null,"DGI",null,null,null,"M"]
[null,{"$f":"SUM(G16:FP16)","v":195.9},null,null,null,null,null,null,null,null,null,null,null,null,0.9,null,null,2,null,null,null,null,null,null,null,null,null,null,null,null,null,null,null,null,1.2,null,null,null,1.5,3.1,1.8,null,6.5,10.7,0.5,null,null,7.5,5.5,null,null,null,2,1.3,4.5,1.7,null,null,null,null,1.4,null,1.3,1.5,null,null,0.9,null,2.2999999999999998,1.6,null,null,null,2,null,1.5,1.5,null,null,null,null,null,null,null,null,null,null,null,1.5,2.5,null,null,null,null,null,2.2999999999999998,null,2.2000000000000002,null,8.8000000000000007,null,null,6,4,0.9,4,2,2,null,null,null,null,1.4,null,6,9.5,null,null,8,1.3,null,null,null,8.9,11.7,3.5,null,null,null,0.8,null,null,null,null,null,null,null,1,5.0999999999999996,null,null,null,null,null,6.3,7.3,null,2,null,null,null,8.4,1.6,0.9,null,null,null,null,null,3.2,null,1,null,null,null,null,null,2,2.5,null,2.6,null,null,null,2.6,null,null,null,1,2,3.7,null,null,null,null,null,1.5]
[null,"FA7X",null,null,null,null,null,null,null,null,null,null,null,null,null,null,null,null,null,"Y/X",null,"X","D",null,null,null,null,null,null,null,null,null,null,null,null,null,null,null,null,null,null,"D",null,null,null,null,"P",null,null,null,null,"Y","Y","Aéro India",null,null,null,null,null,null,null,null,null,"T",null,null,null,null,"D","D",null,null,null,null,"M",null,null,null,null,null,"P","P","P",null,null,null,null,null,null,null,null,null,null,null,null,"F","F","F","T",null,null,null,null,null,null,null,null,null,null,null,null,null,null,null,null,"X",null,null,"D","D",null,null,null,"D",null,null,null,null,null,null,"D","D",null,null,null,"D","D","D","D",null,null,null,"Y","Ebace",null,null,"Y",null,null,"D","D","D",null,null,"M","D",null,null,"D",null,null,null,null,null,null,null,null,null,null,null,null,null,null,null,null,null,null,null,null,"D","DGI",null,"D","D","D","D","D"]
[null,"s/n 207",null,null,null,null,null,null,null,null,null,null,null,null,null,null,null,null,null,null,null,null,null,null,null,null,null,null,null,null," ",null,null,null,null,null,null,null,null,null,null,null,null,null,null,null,null,null,null,null,null,null,null,null,null,null,null,null,null,"Y",null,null,null,null,null,null,null,null,null,null,null,null,null,null,null,null,null,null,null,null,null,null,null,null,null,null,null,null,null,null,null,null,null,null,null,null,null,null,null,null,null,null,null,null,null,null,null,null,null,null,null,null,null,null,null,null,null,null,null,null,null,null,null,null,null,null,null,null,null,null,null,null,null,null,null,null,null,null,null,null,null,null,null,null,null,null,null,null,null,null,null,null,null,null,null,null,null,null,null,null,null,null,null,null,null,null,null,null,null,null,null,null,null,null,null,null,null,null,null,null,"D"]
[null,{"$f":"SUM(G19:FP19)","v":121.39999999999999},null,null,null,null,null,null,null,null,null,null,null,null,null,null,null,null,null,2,null,null,4.2,null,null,null,null,null,null,null,null,null,null,null,null,null,null,null,null,null,null,3.7,null,null,null,null,3.1,null,null,null,null,8.6999999999999993,null,null,null,1.3,1.3,null,1,10.7,null,null,null,2,null,null,null,null,8.1999999999999993,6.1,null,null,null,null,null,null,null,null,null,null,12.4,null,13.5,null,null,null,null,null,null,null,null,null,null,null,null,2.5,null,2.2999999999999998,4.5999999999999996,null,null,null,null,null,null,null,null,null,null,null,null,null,null,null,null,null,null,null,null,null,null,null,null,4.9000000000000004,null,null,null,null,null,null,null,null,null,null,null,6,null,3.8,9.6,null,null,null,null,null,null,null,null,null,null,2.8,null,1.1000000000000001,null,null,1.2,2.4,null,null,2,null,null,null,null,null,null,null,null,null,null,null,null,null,null,null,null,null,null,null,null,2.7,3.9,null,1.3,9.6]
[null,"Autres activités",null,null,null,null,"T","T","T","T","T","T","T","T","T","T","T","T","T","T","T","T",null,null,null,null,null,null,null,null,null,null,null,null,null,null,null,null,null,null,null,null,"Al Bateen",null,null,null,null,null,null,null,null,null,null,null,null,null,null,null,null,null,null,null,null,null,null,null,null,null,null,null,null,null,null,null,null,null,null,null,null,null,null,null,null,null,null,null,null,null,null,null,null,null,null,null,null,null,null,null,null,null,null,null,null,null,null,null,null,null,null,null,null,null,null,null,null,null,null,null,null,null,null,null,null,null,null,null,null,null,null,null," ATO TRE",null,null,null,null,null,null,null,null,null,null,null,null,null,null,null," ATOStage TRI  7X",null,null,null,null,null,null,null,null,null,null,null,null,null,"ATO TRI F900 Ex Easy",null,null,null,null,null,null,null,null,null,null,"Salon du Bourget"]
[null,null,null,null,null,null,"T","T","T","T","T","T",null,null,null,null,null,"Mep","T","T","T","T","T","T","Mep","Mep",null,null,null,null," "]
[null,{"$f":"SUM(G22:FP22)","v":0}]
[]
[null,"Missions en attente",null,null,null,null,null,null,null,null,null,null,null,null,null,null,null,null,null,null,null,null,null,null,null,null,null,null,null,null,null,null,null,null,null,null,null,null,null,null,null,null,null,null,null,null,null,null,null,null,null,null,null,null,null,null,null,null,null,null,null,null,null,null,null,null,null,null,null,null,null,null,null,null,null,null,null,null,null,null,null,null,null,null,null,null,null,null,null,null,null,null,null,null,null,null,null,null,null,null,null,null,null,null,null,null,null,null,null,"T?"]
[null,null,null,null,null,null,null,null,null,null,null,null,null,null,null,null,null,null,null,null,null,null,null,null,null,null,null,null,null,null," "]
[]
[]
[null,20,null,"Réu","ATO"]
[null,"7x","9z","2z","5x",null,null,null,null,null,null,null,null,null,null,null,null,null,null,null,null,null,null,null,null,null,null,null,null,null,null,null,null,null,null,null,null,null,null,null,null,null,null,null,null,null,null,null,null,null,null,null,null,null,null,null,null,null,null,null,null,null,null,null,null,null,null,null,null,null,null,null,null,null,null,null,null,null,null,null,null,null,null,null,null,null,null,null,null,null,null,null,null,null,null,null,null,null,null,null,null,null,null,null,null,null,null,null,null,null,null,null,null,null,null,null,null,null,null,null,null,null,null,null,null,null,null,null,null,null,null,null,null,null,null,null,null," "]
[null,50,"9c","2c","8x",null,1,2,3,4,5,6,7,8,9,10,11,12,13,14,15,16,17,18,19,20,21,22,23,24,25,26,27,28,29,30,31,1,2,3,4,5,6,7,8,9,10,11,12,13,14,15,16,17,18,19,20,21,22,23,24,25,26,27,28,1,2,3,4,5,6,7,8,9,10,11,12,13,14,15,16,17,18,19,20,21,22,23,24,25,26,27,28,29,30,31,1,2,3,4,5,6,7,8,9,10,11,12,13,14,15,16,17,18,19,20,21,22,23,24,25,26,27,28,29,30,1,2,3,4,5,6,7,8,9,10,11,12,13,14,15,16,17,18,19,20,21,22,23,24,25,26,27,28,29,30,31,1,2,3,4,5,6,7,8,9,10,11,12,13,14,15,16,17,18,19,20,21,22,23,24,25,26,27,28,29,30]
[null,"PMI",null,null,null,null,null,null,null,null,"Simu","Simu","EI","EI",null,null,null,"Simu","EI","Réu","SC","Réu",null,null,null,"T","DFS",null,null,null,null,"Simu","Mep","Simu",null,"T",null,null,null,null,null,null,null,null,null,null,"FCL",null,"Réu","Réu","P","P","T",null,"SC","M",null,null,null,"Dgac","M",null,"D","D",null,null,"Bur","T","SC","M",null,null,null,"DGI","M","ATO",null,null,null,null,null,null,null,null,null,null,null,"SC","T","D","Réu","Réu",null,null,"Réu","F","F","F","T","Simu","Mal","Mal","Mal","Mal","Mal",null,null,null,"Réu","SC","M&O Paris",null,null,null,null,"Mep","T","Simu",null,"Simu","Simu","T","SC","D","D","M",null,null,null,"Mep","ATO","ATO","Simu",null,null,null,"S","S","Mep","SC","SC","Simu","Y","Ebace",null,null,"Y","T",null,null,null,null,null,null,null,null,null,null,null,null,"SC",null,null,null,"ATO","SC",null,"SC","SC","T","S","S","Sc","Mep","Y",null,null,null,"Simu",null,null,null,null,null,null,"Réu","Réu","Congés du 05.08 au 10,09"]
[null,"E","E","E",null,null,null,null,null,null,null,"EI","DFS",null,null,null,null,null,null,null,"PO",null,null,null,"Mal","Mal","Mal","Mal","Mal","Mal","Mal",null,"Simu","Mep",null,null,null,null,null,null,null,null,null,null,null,null,null,null,null,null,null,null,null,null,null,null,null,null,null,null,null,null,null,null,null,null,"Réu",null,null,null,null,null,null,null,null,null,null,null,null,null,null,null,null,null,null,null,null,null,null,"Réu",null,null,null,null,null,null,null,null,null,null,null,null,null,null,null,null,null,null,null,null,null,"For",null,null,null,"T",null,null,null,null,null,null,null,"D",null,null,null,null,null,"Y",null,"Réu","Réu",null,null,null,null,null,"M",null,"Y",null,"Mep","Y","D","D",null,"SC",null,null,null,null,null,null,null,null,null,null,null,null,null,null,null,null,"Réu",null,null,null,null,null,null,null,"S","Y","Mep",null,null,null,"M",null,null,null,null,null,null,"Sc"]
[null,"E","E","E",null,null,null,null,null,null,null,null,null,null,null,null,null,null,null,null,null,null,null,null,null,null,null,null,null,null,null,null,null,null,null,null,null,null,null,null,null,null,null,null,null,null,null,null,null,null,null,null,null,null,null,null,null,null,null,null,null,null,null,null,null,null,null,null,null,null,null,null,null,null,null,null,null,null,null,null,null,null,null,null,null,null,null,null,null,null,null,null,null,null,null,null,null,null,null,null,null,null,null,null,null,null,null,null,null,null,null,null,null,null,null,"Mep",null,null,null,null,null,null,null,null,null,null,null,null,null,"Simu",null,null,null,null,null,null,null,null,"Mep",null,"Simu",null,null,null,"Mep",null,null,"_",null,null,null,null,null,null,null,null,null,null,null,null,null,null,null,null,null,null,null,null,null,null,null,null,null,null,null,null,null,null,null,null,null,null,null,null,null,"ATO"]
[null,{"$f":"SUM(G34:GE34)","v":143.80000000000001},null,null,null,null,null,null,null,null,4,4,null,null,null,null,null,4,null,null,null,null,null,null,null,null,null,null,null,null,null,4,null,7,null,7,null,null,null,null,null,null,null,null,null,null,null,null,null,null,6.6,7.2,2,null,null,1.7,null,null,null,null,1.4,null,1.2,1.9,null,null,null,7,null,1.6,null,null,null,2,null,null,null,null,null,null,null,null,null,null,null,null,null,null,null,2.2000000000000002,null,null,null,null,null,2.5,null,2.2000000000000002,5.5,4,null,null,null,null,null,null,null,null,null,null,null,null,null,null,null,2.2999999999999998,2,4,null,2,4,0,null,3.9,3.2,2,null,null,null,4.8,null,null,3,null,null,null,0.9,4,1.1000000000000001,null,4,4,1,2,null,null,1,1.4,null,null,null,null,null,null,null,null,null,null,null,null,null,null,null,null,null,null,null,null,null,null,3,null,null,3.7,2.5,null,null,null,5]
[null,"PGU",null,null,null,null,"Mal","Mal","Mal","Mal","Mal","Mal","Mal","Mal","Mal","Mal","Mal","Mal","Mal","Mal","Mal","Mal","Mal","Mal","Mal","Mal","Mal","Mal","Mal","Mal","Mal","Mal","Mal","Mal","Mal","Mal","Mal","Mal","Mal","Mal","Mal","Mal","Mal","Mal","Mal","Mal","Mal","Mal","Mal","Mal","Mal","Mal","Mal","Mal","Mal","Mal","Mal","Mal","Mal","Mal","Mal","Mal","Med","Med",null,null,"SC","SC","SC","SC","Simu",null,null,"Réu","Réu",null,null,null,null,null,"Réu",null,"M",null,"Réu",null,null,"Réu",null,"Simu","Mep",null,null,null,null,"Réu","Simu",null,"Simu",null,null,null,null,null,null,null,null,null,"Simu",null,"M&O","M&O","M",null,null,"X","For","For","For","For",null,null,null,null,null,null,null,"D?","D?",null,null,"Réu","Réu",null,null,null,"Simu",null,"T","S",null,null,"S","Med","Med","T","ATO","ATO",null,"ATO","ATO","ATO","ATO","ATO","M","ATO",null,null,"T",null,"S",null,null,null,null,null,null,"ATO","Réu",null,null,"Simu","S",null,"S",null,"S","S?","Simu","D",null,null,null,null,null,null,null,"Relecture et la Validation documentaire 21.09 au 25.09 inclus  pour le F 50"]
[null,"E","E","E",null,null,null,null,null,null,null,null,null,null,null,null,null,null,null,null,null,null,null,null,null,null,null,null,null,null,null,null,null,null,null,null,null,null,null,null,null,null,null,null,null,null,null,null,null,null,null,null,null,null,null,null,null,null,null,null,null,null,null,null,null,null,null,null,null,null,"SC",null,null,null,null,null,null,null,null,null,null,null,null,null,null,null,null,"Réu",null,"Réu","Réu",null,null,null,null,null,null,null,null,null,null,null,null,null,null,null,null,null,null,null,null,null,null,null,null,null,null,"X",null,null,null,null,null,"D",null,null,null,null,null,null,"D","D",null,null,null,null,null,null,null,null,null,null,null,null,null,null,null,null,null,null,null,null,null,null,null,null,null,null,null,null,null,null,null,null,null,null,null,null,null,null,null,null,null,null,null,null,null,null,null,null,null,null,null,null,null,null,null,"Congés d’été du 31/07/2015 au24/08/2015 inclus"]
[null,"E","E","E",null,null,null,null,null,null,null,null,null,null,null,null,null,null,null,null,null,null,null,null,null,null,null,null,null,null,null,null,null,null,null,null,null,null,null,null,null,null,null,null,null,null,null,null,null,null,null,null,null,null,null,null,null,null,null,null,null,null,null,null,null,null,null,null,null,null,null,null,null,null,null,null,null,null,null,null,null,null,null,null,null,null,null,null,null,null,"Mep"]
[null,{"$f":"SUM(G38:GE38)","v":89.7},null,"C",null,null,null,null,null,null,null,null,null,null,null,null,null,null,null,null,null,null,null,null,null,null,null,null,null,null,null,null,null,null,null,null,null,null,null,null,null,null,null,null,null,null,null,null,null,null,null,null,null,null,null,null,null,null,null,null,null,null,null,null,null,null,null,null,null,null,2,null,null,null,null,null,null,null,null,null,null,null,1.1000000000000001,null,null,null,null,null,null,3,null,null,null,null,null,null,null,null,4,null,null,null,null,null,null,null,null,null,2,null,null,null,1.4,null,null,null,null,null,null,null,null,null,null,4.9000000000000004,null,null,null,null,null,null,3.9,4.2,null,null,null,null,4,null,4,5,null,null,3,null,4,3,null,null,null,4,4,4,4,4,1,4,null,null,1.5,null,2,null,null,null,null,null,null,null,null,null,null,4,null,null,null,null,null,null,5,2.7]
[null,"DBR",null,null,null,null,null,null,null,null,null,"ATO","EI","Simu","Réu",null,null,"Simu","EI","Y/X","M","Réu",null,null,"Réu","Réu",null,null,null,null,null,null,"Mep","Simu","Réu","Réu",null,null,"P",null,"Réu","T",null,null,null,"M?","Réu",null,"Mep","Mep",null,"Simu","P","P","SC",null,null,null,null,null,null,null,null,null,null,null,null,null,null,null,null,null,null,"Réu",null,"ATO","Mep","Mep","S","S","S","S","S","S","Mep",null,null,"SC","T","Réu",null,null,null,null,"Mep","F","F","F","T","Simu",null,null,"Simu","-","Y","S",null,null,null,"SC","FCL","M&O","M",null,null,null,null,null,null,null,null,null,null,null,null,null,null,null,null,null,"ATO","ATO","D","S",null,null,"T","Y","T",null,null,null,"Y","Ebace",null,null,"Y","T",null,null,null,"S","T","Mep","M","ATO",null,"SC","D",null,"ATO","ATO",null,null,"ATO","ATO","ATO","ATO","ATO",null,null,"S","S","S","DGI","Réu","S",null,null,"M","Mep","Réu","M","Mep",null,"Sc","T"]
[null,"E","E","E",null,null,null,null,null,null,null,"Simu",null,null,null,null,null,null,null,null,null,"BSF",null,null,"M","Réu",null,null,null,null,null,null,"Simu","Mep",null,null,null,null,"Simu",null,"T","ATO",null,null,null,null,"Réu",null,"Y",null,null,null,null,null,null,null,null,null,null,null,null,null,null,null,null,null,null,null,null,null,null,null,null,"Simu",null,null,null,null,null,null,null,null,null,"Mep",null,null,null,null,null,null,null,null,null,null,"S",null,null,null,"Simu",null,null,null,null,null,"Mep",null,null,null,null,"Réu",null,null,null,null,null,null,null,null,null,null,null,null,null,null,null,null,null,null,null,null,"S","Réu","S",null,null,null,"Simu","Mep","Réu",null,null,null,"Mep","Y",null,"T",null,"Simu",null,null,null,null,null,"Y",null,null,null,null,null,null,null,null,null,null,null,null,null,null,"SC",null,null,null,null,null,null,null,null,null,null,"M",null,null,"Réu",null,null,"ATO",null,"14 au 21 Septembre Recurrent 7X FAA"]
[null,"E","E",null,null,null,null,null,null,null,null,null,null,null,null,null,null,null,null,null,null,null,null,null,null,null,null,null,null,null,null,null,null,null,null,null,null,null,null,null,"ATO",null,null,null,null,null,null,null,"Mep",null,null,null,null,null,null,null,null,null,null,null,null,null,null,null,null,null,null,null,null,null,null,null,null,null,null,null,null,null,null,null,null,null,null,null,null,null,null,null,null,null,null,null,null,null,null,null,null,null,null,null,null,null,null,null,null,null,null,null,null,null,null,null,null,null,null,null,null,null,null,null,null,null,null,null,null,null,null,null,null,null,null,null,null,null,null,null,null,"Simu",null,null,null,null,null,null,null,null,null,null,null,null,null,null,null,null,null,null,null,null,null,null,null,null,null,null,null,null,null,null,null,null,null,null,null,null,null,null,null,null,null,null,null,null,"Mep",null,null,null,null,"Congés du 05.07 au 05.08",null,null,null,null,null,"  "]
[null,{"$f":"SUM(G42:GE42)","v":179.29999999999998},null,null,null,null,null,null,null,null,null,4,null,2,null,null,null,2,null,2.5,2.1,null,null,null,null,null,null,null,null,null,null,null,null,7,null,null,null,null,8.1,null,2.4,1.8,null,null,null,null,null,null,10.5,null,null,4,4,4.5,null,null,null,null,null,null,null,null,null,null,null,null,null,null,null,null,null,null,null,4,null,null,null,null,null,9,null,null,null,9,null,null,null,null,null,null,null,null,null,null,0.8,2.2999999999999998,null,2.2000000000000002,8.6,4,null,null,4,null,0.9,null,null,null,null,null,null,null,1.4,null,null,null,null,null,null,null,null,null,null,null,null,null,null,null,null,null,4.7,null,3,3,null,null,5,5,4,null,null,null,1,2,4,2,1,3.4,null,null,null,2.7,1.6,0.9,1.2,4,null,null,2,null,null,null,null,null,null,6,4,3,null,null,null,null,3,null,2.6,null,null,null,null,3.5,2,null,1.5,null,null,null,2.1]
[null,"OFR",null,null,null,null,null,null,null,null,"Réu","Réu","D","D","MEP","T","T","T",null,"Réu",null,"BSF",null,null,"Réu","Réu",null,"simu","Réu",null,null,"Réu","Sales Meeting Bod",null,null,null,null,null,"Simu","Réu","Réu",null,"D","D","D","D","D","D","D","Mep",null,null,"Réu","Mep","D","D",null,null,null,null,null," ",null,null,null,null,"Mep","Réu","P","S","Mep","S","S","S","S","S","Mep",null,null,null,"Mep","Mep","Réu","Med",null,null,null,null,"Réu","Réu","Mep","S","S","S","Réu","Réu","Y","Mep",null,null,null,"Simu","Mep","Réu","Réu","Mep",null,"Mep",null,"Réu","FCL","M&O",null,null,null,"Mep",null,"-",null,null,null,null,null,"Réu?",null,null,null,null,null,"Réu","Réu?","S","Réu?",null,null,"D","D","D","D",null,null,null,null,"ATO","ATO","Mep","ATO","ATO",null,"ATO","ATO","ATO","ATO","ATO","ATO",null,"S","Simu","D","Mep",null,null,null,"S","S","S","S","S","S","S",null,null,null,"S","S","Réu",null,null,"M","Réu","T",null,null,null,null,"MEP","ATO","Congés OFR à venir 18 juillet 2 aout et 8 aout au 23 aout"]
[null,"E","C","I",null,null,null,null,null,null,null,"EI",null,null,null,null,null,"MEP",null,null,null,null,null,null,"Med",null,null,null,null,null,null,null,null,null,null,null,null,null,null,null,null,null,null,null,null,null,null,null,"Mep",null,null,null,null,null,null,null,null,null,null,null,null,null,null,null,null,null,"Y",null,null,"Mep",null,null,null,null,null,"Mep",null,null,null,null,"T",null,null,null,null,null,null,null,null,null,null,null,null,"Mep",null,"Mep","Mep",null,null,null,null,null,null,null,null,null,null,"S",null,null,null,null,null,null,null,"M",null,null,null,null,null,null,null,"D",null,null,null,null,null,"S","Simu","Réu",null,null,null,null,null,null,null,null,null,null,null,null,null,"T",null,null,null,null,null,null,null,null,null,null,null,null,null,"Y",null,null,null,null,null,null,null,null,null,null,null,null,null,null,null,null,null,null,null,null,null,null,null,null,null,null,null,"24 au 31 Aout Recurrent FAA F2000EAsy"]
[null,null,null,null,null,null,null,null,null,null,null,null,null,null,null,null,null,null,null,null,null,null,null,null,null,null,null,null,null,null,null,null,null,null,null,null,null,null,null,null,null,null,null,null,null,null,null,null,null,null,null,null,null,null,null,null,null,null,null,null,null,null,null,null,null,null,null,null,null,null,null,null,null,null,null,null,null,null,null,null,null,null,null,null,null,null,null,null,null,null,null,null,null,null,null,null,null,null,null,null,null,null,null,null,null,null,null,null,null,null,null,null,null,null,null,"Mep",null,null,null,null,null,null,null,null,null,null,null,null,null,null,null,"Simu",null,null,null,null,null,null,null,null,null,null,null,null,null,"Mep"]
[null,{"$f":"SUM(G46:GE46)","v":244.49999999999997},null,null,null,null,null,null,null,null,null,null,5.3,2.9,null,6.5,10.8,null,null,null,null,null,null,null,null,null,null,null,null,null,null,null,null,null,null,null,null,null,4,null,null,null,6.5,10.7,0.5,null,null,7.5,4.5,null,null,null,null,null,null,9.1,null,null,null,null,null,null,null,null,null,null,0.9,null,2.2999999999999998,null,null,null,null,null,null,30,null,null,null,null,2,null,null,null,null,null,null,null,null,null,null,0.5,null,8.8000000000000007,null,null,10,null,null,null,null,null,null,null,null,null,null,2.2999999999999998,null,null,null,null,null,null,null,1.7,null,null,null,null,null,null,null,4.9000000000000004,null,null,null,null,null,2,4,null,null,null,null,6,null,3.8,9.6,null,null,null,null,null,null,2,null,null,null,4,4,4,4,null,4,null,4,3,2,3.2,null,null,null,14.3,null,5.5,2.2999999999999998,3.7,8.1999999999999993,9.5,null,null,null,null,null,null,null,null,2,null,3.7,null,null,null,null,null,4]
[null,"JPL",null,null,null,null,null,null,"T","Mep",null,"D",null,"For","Mep",null,null,"PO","For","Réu","Mep","Réu","D","D","D","For","Réu","For","Réu",null,null,"Mep","S",null,"Y","Simu",null,null,"Simu",null,"Réu","T",null,null,null,"P",null,null,"Réu","Réu",null,"Y","Y","Aéro India",null,null,null,null,null,"P",null,null,"M","T",null,null,"Réu","Réu","P",null,null,null,null,"Réu","For","Réu","For","S","Mep",null,"P","P","P","Réu","For",null,null,"Simu","T","Simu","Réu",null,null,null,null,null,null,null,null,null,null,null,null,"S","S","S",null,null,"Mal","Mal","Mal","Mal","Mal","Mal",null,"For","For","For","For","For",null,"T",null,"D","D","Mep","S","Mep",null,"Mep","Mep","ATO",null,null,null,"Mep","Mep","-","S",null,null,null,null,null,null,null,null,null,null,null,null,null,null,null,null,null,null,"Mep","Mep",null,"Réu","S",null,null,null,"Mep","Y","Mep",null,null,null,"Mal","Mal","Mal","Mal","Mal","Mal","Mal","Mal","Réu","DGI","Réu","Réu",null,"Mep","Réu","Réu","Du 25 juillet inclus au 16 Août inclus"]
[null,"E","E","E",null,null,null,null,"T",null,null,null,"D","D","M",null,null,null,"PO",null,"Réu","Simu",null,null,null,"Réu",null,"Réu",null,null,null,"S","Mep",null,null,null,null,null,null,null,null,"ATO",null,null,null,null,null,null,null,null,null,null,null,null,null,"D","D",null,"P",null,null,null,null,"M",null,null,"Mep","Réu",null,null,null,null,null,null,"Réu",null,"Réu","Mep",null,null,null,null,null,null,"Réu",null,null,null,null,"Réu",null,null,null,null,"Mep",null,null,null,null,null,null,null,null,null,null,null,null,null,null,null,null,null,null,null,null,null,null,null,null,null,null,null,null,"D",null,null,null,null,null,"S","Réu","Réu",null,null,null,"S",null,"Simu",null,null,null,null,null,null,null,null,null,null,null,null,null,null,null,null,null,null,null,"S",null,null,null,null,null," ",null,null,"Mep",null,null,null,null,null,null,null,null,null,null,null,null,null,null,null,null,null,null,null,"Mep"]
[null,null,null,null,null,null,null,null,null,null,null,null,null,null,null,null,null,null,null,null,"Mep",null,null,null,null,null,null,"Réu",null,null,null,null,"For",null,null,null,null,null,null,null,null,null,null,null,null,null,null,null,null,null,null,null,null,null,null,null,null,null,null,null,null,null,null,null,null,null,"Y",null,null,null,null,null,null,null,null,null,null,null,null,null,null,null,null,null,null,null,null,null,null,null,null,null,null,null,"Réu",null,null,null,null,null,null,null,null,null,null,null,null,null,null,null,null,null,null,null,null,null,null,null,null,null,null,null,null,null,null,null,null,null,null,null,"Simu"]
[null,{"$f":"SUM(G50:GE50)","v":185.8},null,null,null,null,null,null,6.9,null,null,0.8,null,null,0.9,null,null,null,null,null,null,4,4.4000000000000004,1.1000000000000001,4.0999999999999996,null,null,null,null,null,null,4.2,3.3,null,1.2,2,null,null,4,null,null,1.8,null,null,null,2.5,null,null,null,null,null,9.5,null,null,null,2.4,1.3,null,4.5,8,null,null,1.3,3.5,null,null,0.9,null,null,null,null,null,null,null,null,null,null,8.1,null,null,12.4,null,13.5,null,null,null,null,4,1.5,3,null,null,null,null,"Mep",null,null,null,null,null,null,null,null,10.5,2.2999999999999998,1.3,null,null,null,null,null,null,null,null,null,null,null,null,null,null,null,2.7,null,3.9,3.7,null,2.6,null,null,3.3,4,null,null,null,null,7.9,null,4,3.7,null,null,null,null,null,null,null,null,null,null,null,null,null,null,null,null,null,null,3,null,null,null,4.3,null,null,null,null,10.5,null,null,null,null,null,null,null,null,null,null,null,null,null,2,null,null,null,null,1]
[null,"OPE",null,null,null,null,null,null,null,null,null,"ATO",null,"EI","Mep",null,null,"Réu","Réu","Réu","P",null,null,null,"M","T","Réu",null,"Réu",null,null,"Simu","Mal","Mal","Mal","Mal",null,null,null,"M","Réu","D","P",null,null,null,null,null,null,null,null,"Mep","Mep","D","D","Mep","Mep",null,null,"Med",null,"Réu","Réu","T",null,null,null,null,null,null,null,null,null,"Simu",null,"P","P",null,null,null,null,null,"Réu","Réu","D","D",null,"S","S","S","S","S","S","S","S","Réu","Med","S",null,null,null,"Simu",null,null,"S",null,null,"S","S","S","S","S","S","S","S","S","S","S","S","S",null,null,null,null,null,"Simu",null,null,null,null,null,null,"Réu",null,null,null,"Réu","S","S",null,"T",null,"Y","Ebace",null,null,"Y",null,null,null,"S","Y","Mep","Mep","ATO","D",null,"Mep","Réu","Réu","Réu","Réu","Mep",null,null,"Réu",null,"D","D","Mep",null,"Simu",null,"Mep",null,"S","S",null,"Mep","Réu","T",null,null,null,null,"P","P","14 au 21 Septembre Reccurent 7X FAA"]
[null,"E","E","E",null,null,null,null,null,null,null,"D",null,null,"M",null,null,"Mep","Mep",null,null,null,null,null,"Simu",null,"Réu",null,"Simu",null,null,null,null,"Réu","Réu",null,null,null,null,null,"Y",null,null,null,null,null,null,null,null,null,null,null,null,null,null,null,null,null,null,"Visa",null,null,null,"M",null,null,null,null,null,null,null,null,null,null,null,null,null,null,null,null,null,null,null,"Réu",null,null,null,null,null,null,null,null,null,null,null,"Réu","S",null,null,null,null,null,null,null,"Mep",null,null,null,null,null,null,null,null,null,null,null,null,null,null,null,null,null,null,null,null,null,null,null,null,null,null,null,"Réu",null,null,null,"S",null,null,null,null,null,null,null,null,null,null,null,null,null,null,"Mep",null,"Y",null,null,null,null,null,null,null,"Mep",null," ",null,null,null,null,null,null,null,null,null,"Y",null,null,null,null,"Y","Réu?"]
[null,null,null,"C",null,null,null,null,null,null,null,null,null,null,null,null,null,null,null,null,null,null,null,null,"   ",null,null,null,null,null,null,null,null,null,null,null,null,null,null,null,"Mep",null,null,null,null,null,null,null,null,null,null,null,null,null,null,null,null,null,null,null,null,null,null,null,null,null,null,null,null,null,null,null,null,null,null,null,null,null,null,null,null,null,null,null,null,null,null,null,null,null,null,null,null,null,null,null,null,null,null,null,null,null,null,null,null,null,null,null,null,null,null,null,null,null,null,null,null,null,null,null,null,null,null,null,null,null,null,null,null,null,null,null,null,null,null,null,null,null,null,null,null,null,null,null,null,null,null,null,null,null,null,null,null,"ATO"]
[null,{"$f":"SUM(G54:GE54)","v":168.59999999999997},null,null,null,null,null,null,null,null,null,0.8,null,null,0.9,null,null,null,null,null,8.6999999999999993,null,null,null,null,2.7,null,null,null,null,null,null,null,null,null,null,null,null,null,3.1,1.8,3.7,2,null,null,null,null,null,null,null,null,null,null,1.3,4.5,null,null,null,null,null,null,null,null,3.5,null,null,null,null,null,null,null,null,null,4,null,1.5,1.5,null,null,null,null,null,null,null,2.2000000000000002,2.5,null,5.5,3.3,null,1.8,null,null,7.2,1.7,null,1.3,1,null,null,null,1.5,null,null,1.3,null,null,9.6,null,3.8,1.6,1.6,3.4,null,4.5999999999999996,2.2999999999999998,null,3.6,7.8,1.2,null,null,null,null,null,4,null,null,null,null,null,null,null,null,null,null,0.9,4,1.9,null,1.2,null,1,null,null,null,1,null,null,null,null,8,null,0.9,4,2.4,null,null,null,null,null,null,null,null,null,null,null,2,2.5,null,null,4,null,3.7,null,null,null,null,1,null,3.7,null,null,null,null,6.5,7.1]
[null,"MDU",null,null,null,null,null,null,null,null,null,null,null,null,null,null,null,"M",null,"PO","M","PO",null,null,"Mep","T","Réu","Réu","Réu",null,null,"Réu","Réu","Réu","P",null,null,null,"D",null,"Réu",null,"Réu",null,null,null,null,null,"Y","Simu",null,"Y","Y","Aéro India",null,null,null,null,null,null,null,"Réu",null,null,null,null,"Mep","Mep","D","D","Simu",null,null,null,"M",null,"Réu",null,null,null,"Simu",null,"M","Y","Mep",null,null,null,"T","Réu",null,"Réu",null,null,"Réu","Réu","Simu",null,"Med","Med","Med","Med","Med","Med","Med","Med","Med","Med","Med","Med","M&O Paris",null,"S",null,null,"For","For","For","For","For",null,null,null,null,null,null,null,null,null,"M?","T","S","Réu",null,null,null,null,null,null,null,null,null,null,null,"D","D","Mep","S","S","S","Mep","Mep","T","Mep","S",null,null,"Réu",null,"Mep","ATO","ATO",null,null,"ATO","ATO","ATO","ATO","ATO",null,null,"Simu","Mep","S","S","S","S","S","Simu",null,null,null,null,null,null,null,"M"]
[null,"C","E","E",null,null,null,null,null,null,null,null,null,null,null,null,null,null,null,null,null,null,null,null,null,"Mep",null,"Réu",null,null,null,"Mep","T",null,null,null,null,null,"Simu",null,"T",null,null,null,null,null,null,null,"Mep",null,null,null,null,null,"D",null,null,null,null,"Y",null,null,null,null,null,null,"T",null,null,null,null,null,null,null,"Simu",null,null,null,null,null,null,null,"Mep","Mep",null,null,null,null,null,null,null,"Réu",null,null,null,"Réu",null,null,null,null,null,null,null,null,null,null,null,null,null,null,null,null,"Mep",null,null,null,null,null,null,null,null,null,null,null,null,null,null,null,"S",null,"T",null,"Réu",null,null,null,null,null,null,null,null,null,null,null,null,null,null,null,null,null,null,"D","S",null,"Mep",null,null,"Simu",null,"Y",null,null,null,null,null,null,null,null,null,null,null,null,"T",null,null,null,null,null,null,null,null,null,null,null,null,null,null,"Relecture et la Validation documentaire 21.09 au 25.09 inclus  pour le F 50"]
[null,"E","E","E",null,null,null,null,null,null,null,null,null,null,null,null,null,null,null,null,null,null,null,null,null,null,null,null,null,null,null,null,"Mep",null,null,null,null,null,null,null,"ATO",null,null,null,null,null,null,null,null,null,null,null,null,null,null,null,null,null,null,null,null,null,null,null,null,null,null,null,null,null,null,null,null,null,null,null,null,null,null,null,null,null,null,null,null,null,null,null,null,null,null,null,null,null,null,null,null,null,null,null,null,null,null,null,null,null,null,null,null,null,null,null,null,null,null,null,null,null,null,null,null,null,null,null,null,null,null,null,null,null,null,null,null,null,null,null,null,null,null,null,null,null,null,null,null,null,null,null,null,null,null,null,null,null,null,null,null,null,null,null,null,null,null,null,null,null,null,null,null,null,null,null,"Mep"]
[null,{"$f":"SUM(G58:GE58)","v":150.09999999999997},null,"E",null,null,null,null,null,null,null,null,null,null,null,null,null,1,null,null,2.1,null,null,null,null,null,null,null,null,null,null,null,1,null,2,null,null,null,6.3,null,2.4,null,null,null,null,null,null,null,1,4,null,8.6999999999999993,null,null,0.9,1.3,1.3,null,1,10.7,null,null,null,null,null,null,null,null,8.1999999999999993,6.1,null,null,null,null,4,null,null,null,null,null,4,null,1.1000000000000001,10.4,null,null,null,null,1.5,null,null,null,null,null,null,null,null,null,null,null,null,null,null,null,null,null,null,null,null,null,null,null,1.3,null,null,null,null,null,null,null,null,null,null,null,null,null,null,null,3.8,null,1.9,4.5999999999999996,null,null,null,null,null,null,null,null,null,null,null,null,4.3,3.8,null,null,null,7,null,1.1000000000000001,4.5,null,1.6,null,null,3,null,3.2,null,null,null,null,null,6,4,3,null,null,null,4,null,4,null,null,4.5,null,4,null,null,null,null,null,null,null,1.5]
[null,"PCA",null,null,null,null,"T","T","Mep",null,null,"ATO","Réu","Simu","Réu",null,null,"Réu","T","Réu","Réu",null,null,"Mep","T","Réu","D",null,null,null,null,null,"Mep","Simu","Y","Réu",null,null,"Réu",null,"Réu","Réu","T",null,null,"M?","P","Réu","Y",null,null,null,null,null,null,null,null,null,null,null,"M","Réu","M",null,null,null,"Réu","Mep","Réu","M",null,null,null,"Réu","Réu","ATO",null,"Mep","T","T","Mep","Mep","Réu","Réu","Med",null,null,"Réu","T","D","Réu",null,null,null,null,"Med","Simu","SC","T","Mep",null,null,"SC",null,"Y",null,null,"Mep","Mep","ABACE",null,null,null,"Mep",null,null,null,null,null,null,null,null,"Mep","D","D","D","S",null,null,"Mep","ATO","ATO","Simu","S",null,null,"T","Y","Mep",null,null,null,null,"Simu","P","T","SC","ATO",null,"D",null,"Y","Mep","Mep","T",null,null,"S","S",null,"Réu","Y",null,null,"Mep","Réu","Réu","Réu",null,null,"Mep","S","S","Med","Med","S",null,"S","Réu","M","D",null,"D","D","Mep","Réu","M","31 Juillet au 23 Aout Congés"]
[null,"E","C","E",null,null,null,"Mep",null,null,null,"Simu",null,null,null,null,null,"Brief",null,null,null,null,null,null,"Mep",null,null,null,null,null,null,null,"Simu","Mep",null,null,null,null,"Réu",null,"Med",null,null,null,null,null,null,null,"Mep",null,null,null,null,null,null,null,null,null,null,null,"Réu",null,null,null,null,null,"Réu","Réu","Mep",null,null,null,null,null,null,null,null,null,null,null,null,null,null,null,null,null,null,"D",null,"Réu","Réu",null,null,null,null,null,"Réu",null,null,"T",null,null,null,null,"Mep",null,null,null,null,null,null,null,"Mep",null,null,null,null,null,null,null,null,null,null,null,null,null,null,null,null,"Y",null,"Réu","T",null,null,null,"Simu","Mep","M",null,null,null,null,null,null,null,"ATO","S",null,"Mep",null,"Mep","Réu",null,null,null,null,null,null,null,null,"Mep",null,null,"T",null,null,null,null,null,"D",null,null,null,null,null,null,null,null,"M",null,null,"Réu","Mep",null,"ATO",null,"24 au 31 Aout Recurrent FAA F2000EAsy"]
[null,"E","E",null,null,null,null,null,null,null,null,null,null,null,null,null,null,null,null,null,null,null,null,null,null,null,null,null,null,null,null,null,null,null,null,null,null,null,null,null,null,null,null,null,null,null,null,null,null,null,null,null,null,null,null,null,null,null,null,null,null,null,null,null,null,null,null,null,null,null,null,null,null,null,null,null,null,null,null,null,null,null,null,null,null,null,null,null,null,null,null,null,null,null,null,null,"M",null,null,"Mep",null,null,null,null,"Réu",null,null,null,null,null,null,null,null,null,null,null,null,null,null,null,null,null,null,null,null,null,null,null,null,"Simu",null,null,null,null,null,null,null,"Simu","Mep",null,null,null,null,null,null,null,null,null,null,null,null,null,null,null,null,null,null,null,null,null,null,null,null,null,"Mep"]
[null,{"$f":"SUM(G62:GE62)","v":167.1},null,null,null,null,3.8,3.8,null,null,null,4,null,2,null,null,null,null,2.5,null,null,null,null,null,1.8,null,5.4,null,null,null,null,null,null,7,1.2,null,null,null,null,null,null,null,2.5,null,null,null,3.1,null,1,null,null,null,null,null,null,null,null,null,null,null,1.4,null,1.3,null,null,null,null,null,null,1.6,null,null,null,null,null,null,null,null,4,4,null,null,null,null,null,null,null,2.7,null,2.2000000000000002,null,null,null,null,null,null,1.9,null,4.5999999999999996,2.2000000000000002,null,null,null,null,0.9,null,null,null,null,null,null,null,null,null,null,null,null,null,null,null,null,null,null,5,6.2,3.5,4,null,null,4.8,null,null,4.9000000000000004,5.3,null,null,5,5,1.1000000000000001,null,null,null,null,4,2,3.5,null,3.6,null,2.8,null,8.4,null,null,3,null,null,5.7,2.1,null,null,1,null,null,0.9,null,null,null,null,null,2.6,null,null,null,null,null,null,null,null,3.5,1.9,null,1.3,9.6,null,null,1.5]
[null,"BSE",null,null,null,null,null,null,null,null,null,null,null,null,null,null,null,null,null,null,null,null,null,null,null,null,null,null,null,null,null,null,null,null,null,null,null,null,null,null,null,null,null,null,null,null,null,null,null,null,null,null,null,null,null,null,null,null,null,null,null,null,null,null,null,null,null,null,null,null,null,null,null,null,null,null,null,null,null,null,null,null,null,null,null,null,null,null,null,null,null,null,"77j",null,null,null,null,null,null,null,null,null,null,null,null,null,null,null,null,null,null,null,null,null,null,null,null,null,null,null,null,null,null,null,null,null,"80j",null,null,null,null,null,null,null,null,null,null,null,null,null,null,null,null,null,null,null,null,null,null,null,null,null,null,null,null,null,105]
[null,"E"]
[null,"E","E",null,null,null,null,null,null,"91j"]
[null,0]
[null,"DEV",null,null,null,null,null,null,null,null,null,null,null,null,null,null,null,null,null,null,null,null,null,null,null,null,null,null,null,null,null,null,null,null,null,null,null,null,null,null,null,null,null,null,null,null,null,null,null,null,null,null,null,null,null,null,null,null,null,null,null,null,null,null,null,null,null,null,null,null,null,null,null,"Simu",null,null,null,null,null,null,null,null,null,null,null,null,null,null,null,null,null,null,null,null,null,null,null,null,null,null,null,null,null,null,null,null,null,null,null,null,null,null,null,null,null,null,null,"DEV","D","D",null,null,null,null,null,null,null,"DEV","P","P",null,null,null,null,"JLD","D","D","D","D",null,null,null,null,"EGE","D","D",null,null,null,null,"Simu","Simu",null,null,null,null,null,null,"D"]
[null,null,null,null,null,null,null,null,null,null,null,null,null,null,null,null,null,null,null,null,null,null,null,null,null,null,null,null,null,null,null,null,null,null,null,null,null,null,null,null,null,null,null,null,null,null,null,null,null,null,null,null,null,null,null,null,null,null,null,null,null,null,null,null,null,null,null,null,null,null,null,null,null,null,null,null,null,null,null,null,null,null,null,null,null,null,null,null,null,null,null,null,null,null,null,null,null,null,null,null,null,null,null,null,null,null,null,null,null,null,null,null,null,null,null,"DEV","D","D","D",null,null,null,null,null,null,null,null,null,null,null,null,null,null,null,null,null,null,null,null,null,null,null,null,"FVA","D","D",null,null,null,null,null,"Simu"]
[null,null,null,null,null,null,null,null,null,null,null,null,null,null,null,null,null,null,null,null,null,null,null,null,null,null,null,null,null,null,null,null,null,null,null,null,null,null,null,null,null,null,null,null,null,null,null,null,null,null,null,null,null,null,null,null,null,null,null,null,null,null,null,null,null,null,null,null,null,null,null,null,null,null,null,null,null,null,null,null,null,null,null,null,null,null,null,null,null,null,null,null,null,null,null,null,null,null,null,null,null,null,null,null,null,null,null,null,null,null,null,null,null,null,null,null,null,null,null,null,null,null,null,null,null,null,null,null,null,null,null,null,null,null,null,null,null,null,null,null,null,null,null,"JLD","P","EFA","M"]
[null,{"$f":"SUM(G70:FP70)","v":0}]
[null,"EXT",null,null,null,null,null,null,null,null,null,null,null,null,null,null,null,null,null,null,null,null,null,null,null,null,null,null,null,null,null,null,null,null,null,null,null,null,null,null,null,null,null,null,null,null,null,null,null,null,null,null,null,null,null,null,null,null,null,null,null,null,null,null,null,null,null,null,null,null,null,null,null,null,null,null,null,null,null,null,null,null,null,null,null,null,null,null,null,null,null,null,null,null,null,null,null,null,"CMA","D","D","D","D","D","D","D","D","D","D",null,null,null,null,"CMA","D","D","D","D","D","D","D","D","D","D","D","D",null,null,null,"HME","S","RMO","D",null,null,null,null,null,null,"RMO","Y"]
[null,null,null,null,null,null,null,null,null,null,null,null,null,null,null,null,null,null,null,null,null,null,null,null,null,null,null,null,null,null,null,null,null,null,null,null,null,null,null,null,null,null,null,null,null,null,null,null,null,null,null,null,null,null,null,null,null,null,null,null,null,null,null,null,null,null,null,null,null,null,null,null,null,null,null,null,null,null,null,null,null,null,null,null,null,null,null,null,null,null,null,null,null,null,null,null,null,null,null,null,null,null,null,null,null,null,null,null,null,null,null,null,null,null,null,null,null,null,null,null,null,null,null,null,null,null,null,null,null,null,"RBE","S"]
[]
[null,{"$f":"SUM(G74:FP74)","v":0}]
[null,null,null,null,null,null,1,2,3,4,5,6,7,8,9,10,11,12,13,14,15,16,17,18,19,20,21,22,23,24,25,26,27,28,29,30,31,1,2,3,4,5,6,7,8,9,10,11,12,13,14,15,16,17,18,19,20,21,22,23,24,25,26,27,28,1,2,3,4,5,6,7,8,9,10,11,12,13,14,15,16,17,18,19,20,21,22,23,24,25,26,27,28,29,30,31,1,2,3,4,5,6,7,8,9,10,11,12,13,14,15,16,17,18,19,20,21,22,23,24,25,26,27,28,29,30,1,2,3,4,5,6,7,8,9,10,11,12,13,14,15,16,17,18,19,20,21,22,23,24,25,26,27,28,29,30,31,1,2,3,4,5,6,7,8,9,10,11,12,13,14,15,16,17,18,19,20,21,22,23,24,25,26,27,28,29,30]
[null,"CPA",null,null,null,null,null,null,null,null,null,null,null,null,null,null,null,null,null,"Visa",null,"X",null,"D","D","Réu","D",null,null,null,null,null,null,null,null,null,null,null,"P",null,"Med","D",null,null,null,null,null,null,null,null,null,"Y","Y","Aéro India",null,null,null,null,null,"P",null,null,"D","D",null,null,null,null,null,null,null,null,null,null,null,null,null,null,null,null,"P","P","P",null,null,null,null,null,null,"D","For",null,null,null,null,"F","F","F",null,"D","D","D","D","D","D","D","D","D","D","Abace",null,null,"Mep",null,null,"X","D","D","D",null,null,null,null,null,null,null,null,null,null,null,null,null,null,null,null,null,null,null,null,null,null,null,"Y","Ebace",null,null,"Y",null,null,null,null,null,null,null,null,null,null,null,"D",null,null,null,null,null,null,null,null,"D",null,null,"Salon du Bourget",null,null,null,null,null,null,null,null,null,null,null,null,null,null,null,null,"Juillet ",null,null,null,"Aout",null,null,"Septembre"]
[null,"7x","9z","2z","5x","8x",null,null,null,null,null,null,null,null,null,null,null,null,null,"Y/X",null,null,null,null,null,null,null,null,null,null,null,null,null,null,null,null,null,null,null,null,null,null,null,null,null,null,null,null,null,null,null,null,null,null,null,null,null,null,"P",null,null,null,null,null,null,null,null,null,null,null,null,null,null,null,null,null,null,null,null,null,null,null,null,null,null,null,null,null,null,null,"Réu",null,null,null,null,null,null,null,null,null,null,null,null,null,null,null,null,null,null,null,null,null,null,null,null,null,null,null,null,null,null,null,null,null,null,null,null,null,null,null,null,null,null,null,null,null,null,null,null,null,null,null,null,null,null,null,null,null,null,null,null,null,null,null,null,null,null,null,null,null,null,null,null,null,null,null,null,null,null,null,null,null,null,null,null,null,null,null,null,null,"D",null,null,null,null,null,null,"CPA / repos 11 au 18 / vac 19 au 31 ",null,null,null,"CPA / repos 1 au 8 ",null,null,"CPA / repos 21 au 28 "]
[null,50,"9c","2c",null,null,null,null,null,null,null,null,null,null,null,null,null,null,null,null,null,null,null,null,null,null,null,null,null,null,null,null,null,null,null,null,null,null,null," "]
[null,{"$f":"SUM(G79:GE79)","v":120},null,null,null,null,null,null,null,null,null,null,null,null,null,null,null,null,null,2,null,null,null,1.1000000000000001,4.0999999999999996,null,5.4,null,null,null,null,null,null,null,null,null,null,null,4.0999999999999996,null,null,3.7,null,null,null,null,null,null,null,null,null,8.6999999999999993,null,null,null,1.3,null,null,4.5,8,null,null,1.2,1.9,null,null,null,null,null,null,null,null,null,null,null,null,null,null,null,null,12.4,null,13.5,null,null,null,null,null,null,2.2000000000000002,null,null,null,null,null,2.5,null,2.2999999999999998,null,8.8000000000000007,null,null,6,4,null,4,2,2,null,null,null,null,null,null,null,null,1.6,2,2.8,null,null,null,null,null,null,null,null,null,null,null,null,null,null,null,null,null,null,null,null,null,null,null,1,null,null,null,1,null,null,null,null,null,null,null,null,null,null,null,2,null,null,null,null,null,null,null,null,2,null,null,null,null,null,null,null,null,null,null,null,null,1.9]
[null,"CMO",null,null,null,null,null,null,null,null,null,null,"D","D",null,null,null,null,null,"Visa",null,null,null,null,null,null,null,null,null,null,null,null,null,null,"P",null,null,null,"D",null,null,null,"P",null,null,"P","P",null,null,null,null,"Y","Y","Aéro India",null,null,null,null,null,null,null,null,null,null,null,null,null,null,"D","D",null,null,null,"DGI","Réu",null,null,null,null,null,null,null,null,null,"D","D",null,null,null,null,null,null,null,null,null,"F","F","F",null,null,null,null,null,null,null,null,null,null,null,null,null,null,"For",null,null,null,null,null,null,null,null,null,null,null,null,null,null,"D?","P","P",null,null,null,null,null,null,null,null,null,null,null,null,"Y","Ebace",null,null,"Y",null,null,"D",null,null,null,null,null,null,null,null,"D",null,null,null,null,null,null,null,null,null,null,null,null,"Salon du Bourget",null,null,null,null,null,null,null,null,null,null,null,null,null,"P","P","CMO / repos du 4 au 11 ",null,null,null,"CMO / repos 7au 14 / vac 15 au 30 ",null,null,"CMO / repos 1 au 8 "]
[null,"7x","9z","2z","5x","8x",null,null,null,null,null,null,null,null,null,null,null,null,null,"Réu",null,null,null,null,null,null,null,null,null,null,null,null,null,null,null,null,null,null,null,null,null,null,null,null,null,null,null,null,null,null,null,null,null,null,null,null,null,null,null,"Y",null,null,null,null,null,null,null,null,null,null,null,null,null,null,null,null,null,null,null,null,null,null,null,null,null,null,null,null,null,null,null,null,null,null,null,null,null,null,null,null,null,null,null,null,null,null,null,null,null,null,null,null,null,null,null,null,null,null,null,null,null,null,null,null,null,null,null,null,null,null,null,null,null,null,null,null,null,null,null,null,null,null,null,null,null,null,null,null,null,"Mep"]
[null,50,"9c","2c"]
[null,{"$f":"SUM(G83:GE83)","v":99.999999999999986},null,null,null,null,null,null,null,null,null,null,5.3,2.9,null,null,null,null,null,null,null,null,null,null,null,null,null,null,null,null,null,null,null,null,2,null,null,null,1.3,null,null,null,2,null,null,2.5,3.1,null,null,null,null,8.6999999999999993,null,null,null,null,null,null,1,10.7,null,null,null,null,null,null,null,null,8.1999999999999993,6.1,null,null,null,2,null,null,null,null,null,null,null,null,null,null,2.2000000000000002,2.5,null,null,null,null,null,null,null,null,null,2.2999999999999998,null,2.2000000000000002,null,null,null,null,null,null,null,null,null,null,null,null,null,null,null,null,null,null,null,null,null,null,null,null,null,null,null,null,null,null,7.8,6.8,null,null,null,null,null,null,null,null,null,null,null,null,1,null,null,null,1,null,null,2.8,null,null,null,null,null,null,null,null,2,null,null,null,null,null,null,null,null,null,null,null,null,null,null,null,null,null,null,null,null,null,null,null,null,null,null,6.5,7.1]
[null,"MFR",null,null,null,null,null,null,null,null,null,null,null,null,null,null,null,null,null,"Visa","P",null,"D",null,null,null,null,null,null,null,null,"Med",null,null,null,null,null,null,null,null,null,null,"D","D","D","D","D","D","D","Mep","P","P",null,null,null,null,null,null,null,null,null,null,null,null,null,null,null,null,null,null,null,null,null,null,null,"P","P",null,null,null,null,null,null,null,null,null,null,"D",null,"P","For",null,null,null,null,null,null,null,null,null,null,null,null,null,null,null,null,null,null,"Mep","Mep","Abace",null,"D","D","D","D","D","D","D","D","D",null,null,null,null,null,null,null,null,null,null,null,null,null,"D","D","D","D",null,null,null,"Y","Ebace",null,null,"Y",null,null,null,null,"Mep",null,null,null,"D",null,null,null,null,null,null,null,null,null,null,null,null,"D",null,null,"Salon du Bourget",null,null,null,null,null,null,null,"D",null,null,"D","D","Mep",null,null,"MFR / repos 1au 3 / repos 21 au 25 ",null,null,null,"MFR / repos 1au 8 / vac 9 au 24 ",null,null,"MFR / repos 1 au 8 / vac le 9 "]
[null,"7x","9z","2z","5x","8x",null,null,null,null,null,null,null,null,null,null,null,null,null,"Réu",null,null,null,null,null,null,null,null,null,null,null,null,null,null,null,null,null,null,null,null,null,null,null,null,null,null,null,null,"Mep",null,null,null,null,null,null,null,null,null,null,null,null,null,null,null,null,null,null,null,null,null,null,null,null,null,null,null,null,null,null,null,null,null,null,null,null,null,null,null,null,null,null,null,null,null,null,null,null,null,null,null,null,null,null,null,null,null,null,null,null,null,null,null,null,null,null,null,null,null,null,null,null,"Mep",null,null,null,null,null,null,null,null,null,null,null,null,null,null,null,null,null,null,null,null,null,null,null,null,null,null,null,null,null,"D",null,null,null,null,null,null,null,null,null,null,null,null,null,null,null,null,"Mep",null,null,null,null,null,null,null,null,null,null,null,null,null,null,"Mep"]
[null,50,"9c","2c"]
[null,{"$f":"SUM(G87:GE87)","v":128.59999999999997},null,null,null,null,null,null,null,null,null,null,null,null,null,null,null,null,null,null,8.6999999999999993,null,4.2,null,null,null,null,null,null,null,null,null,null,null,null,null,null,null,null,null,null,null,6.5,10.7,0.5,null,null,7.5,4.5,null,6.6,7.2,null,null,null,null,null,null,null,null,null,null,null,null,null,null,null,null,null,null,null,null,null,null,null,1.5,1.5,null,null,null,null,null,null,null,null,null,null,2.7,null,2.5,null,null,null,null,null,null,null,null,null,null,null,null,null,null,null,null,null,null,null,null,null,null,null,null,6,7.8,null,null,8,1.3,null,null,null,null,null,null,null,null,null,null,null,null,null,null,null,6,null,3.8,9.6,null,null,null,1,null,null,null,1,null,null,null,null,1.1000000000000001,null,null,null,2.2999999999999998,null,null,null,null,null,null,null,null,null,null,null,null,2.5,null,null,null,null,null,null,null,null,null,null,2.7,null,null,1.3,9.6]
[null,"EXT",null,null,null,null,null,null,null,null,null,"ATE","D","D",null,null,null,null,null,null,null,null,null,null,null,null,null,null,null,null,null,null,null,null,null,null,null,null,null,null,null,null,null,null,null,null,null,null,null,null,"ATE","Mep","Mep","D","D","Mep","Mep",null,null,null,null,null,null,null,null,null,null,"NPA","P",null,"ALA","D","D","D","D","D","D","D","D","D",null,null,null,null,null,null,null,null,null,null,null,null,null,null,null,null,null,null,null,null,null,null,null,null,null,null,null,null,null,null,null,null,null,null,null,null,null,"NPA","D","D","NPA","Mep","D","D","D","D",null,"ALA","D?","ALA","D","D",null,null,null,"ALA","S","S",null,null,null,null,null,"NPA","P",null,null,null,null,null,null,null,null,null,null,null,null,null,null,null,null,null,"ALA","S","S","S","S","S","S","S",null,null,null,"ALA","DGI",null,null,null,null,"ALA","DGI"]
[null,null,null,null,null,null,null,null,null,null,null,null,null,null,null,null,null,null,null,null,null,null,null,null,null,null,null,null,null,null,null,null,null,null,null,null,null,null,null,null,null,null,null,null,null,null,null,null,null,null,null,null,"CBR","Mep","D","D",null,null,null,null,null,null,null,null,null,null,null,null,null,null,null,null,null,null,null,null,null,null,null,null,null,null,null,null,null,null,null,null,null,null,null,null,null,null,null,null,null,null,null,null,null,null,null,null,null,null,null,null,null,null,null,null,null,null,null,null,null,null,null,null,null,null,"RNG","D",null,null,null,null,null,"OMA","S","S",null,null,null,null,null,null,null,null,null,null,null,"KGI","D","D",null,null,null,null,null,null,null,null,null,null,null,null,null,null,null,null,null,null,null,null,null,null,null,"CBE","Mep",null,null,null,null,null,null,null,"KGI","D"]
[null,null,null,null,null,null,null,null,null,null,null,null,null,null,null,null,null,null,null,null,null,null,null,null,null,null,null,null,null,null,null,null,null,null,null,null,null,null,null,null,null,null,null,null,null,null,null,null,null,null,null,"LPI","P","P",null,null,null,null,null,null,null,null,null,null,null,null,null,null,null,null,null,null,null,null,null,null,null,null,null,null,null,null,null,null,null,null,null,null,null,null,null,null,null,null,null,null,null,null,null,null,null,null,null,null,null,null,null,null,null,null,null,null,null,null,null,null,null,null,null,null,null,null,"ALA","D","D",null,null,null,"NGE","S",null,null,null,null,null,null,null,null,null,null,null,null,null,"OMA","D","D",null,null,null,null,null,null,null,null,null,null,null,null,null,null,null,null,null,null,null,null,null,null,null,null,"D"]
[null,{"$f":"SUM(G91:FP91)","v":0},null,null,null,null,null,null,null,null,null,null,null,null,null,null,null,null,null,null,null,null,null,null,null,null,null,null,null,null,null,null,null,null,null,null,null,null,null,null,null,null,null,null,null,null,null,null,null,null,null,null,null,null,null,null,null,null,null,null,null,null,null,null,null,null,null,null,null,null,null,null,null,null,null,null,null,null,null,null,null,null,null,null,null,null,null,null,null,null,null,null,null,null,null,null,null,null,null,null,null,null,null,null,null,null,null,null,null,null,null,null,null,null,null,null,null,null,null,null,null,null,null,"D"]

{"sheet":"2015-2 ","index":1,"n_rows":95,"n_cols":191,"rows_kept":95,"cut":false,"hidden":false,"merged":[[13,151,13,162],[13,137,13,148],[30,145,30,147],[91,135,91,136],[87,77,87,78],[10,77,10,78],[62,134,62,140],[62,95,62,96],[50,137,50,141],[54,77,54,78],[16,77,16,78],[16,134,16,140],[38,81,38,88],[42,81,42,85],[46,102,46,106],[50,81,50,88],[30,114,30,120],[30,135,30,136],[17,135,17,136],[73,135,73,136],[16,91,16,93],[34,118,34,124],[87,134,87,140],[87,91,87,93],[11,1,11,5],[13,55,13,70],[38,74,38,78],[33,3,33,4],[10,95,10,97],[8,1,8,5],[19,1,19,5],[14,1,14,5],[15,1,15,5],[16,1,16,5],[17,1,17,5],[18,1,18,5],[12,1,12,5],[79,77,79,78],[57,3,57,4],[61,3,61,4],[50,95,50,97],[49,3,49,4],[0,159,0,189],[6,13,6,16],[7,1,7,5],[0,6,0,36],[0,37,0,67],[0,68,0,97],[0,98,0,128],[0,129,0,158],[3,1,3,5],[4,1,4,5],[5,1,5,5],[6,6,6,9],[7,134,7,140],[6,100,6,102],[6,107,6,109],[21,1,21,5],[13,1,13,5],[9,1,9,5],[10,1,10,5],[94,1,94,3],[70,1,70,5],[73,1,73,3],[74,1,74,5],[77,1,77,3],[79,1,79,5],[82,1,82,3],[83,1,83,5],[86,1,86,3],[87,1,87,5],[90,1,90,3],[91,1,91,5],[79,190,79,194],[83,190,83,194],[70,91,70,93],[62,91,62,92],[58,88,58,92],[50,98,50,99],[58,60,58,67],[54,1,54,5],[54,109,54,113],[69,1,69,2],[58,1,58,5],[61,1,61,2],[62,1,62,5],[79,145,79,147],[58,110,58,112],[71,134,71,140],[72,134,72,140],[65,1,65,2],[66,1,66,5],[65,3,65,4],[63,190,63,195],[62,151,62,155],[57,1,57,2],[79,134,79,140],[16,145,16,147],[26,3,26,4],[34,1,34,5],[38,1,38,5],[23,1,24,5],[25,1,25,3],[30,1,30,5],[54,134,54,140],[50,119,50,121],[41,1,41,2],[37,3,37,4],[34,67,34,69],[34,76,34,78],[45,3,45,4],[42,77,42,78],[42,1,42,5],[42,60,42,67],[45,1,45,2],[42,130,42,134],[34,144,34,148],[41,3,41,4],[37,1,37,2],[20,1,20,5],[46,1,46,5],[42,90,42,91],[22,152,22,173],[25,109,25,118],[33,1,33,2],[50,1,50,5],[53,1,53,2],[53,3,53,4],[49,1,49,2],[46,172,46,176],[34,165,34,169],[50,145,50,147]]}
[null,null,null,null,null,null,"Juillet",null,null,null,null,null,null,null,null,null,null,null,null,null,null,null,null,null,null,null,null,null,null,null,null,null,null,null,null,null,null,"Aout",null,null,null,null,null,null,null,null,null,null,null,null,null,null,null,null,null,null,null,null,null,null,null,null,null,null,null,null,null,null,"Septembre",null,null,null,null,null,null,null,null,null,null,null,null,null,null,null,null,null,null,null,null,null,null,null,null,null,null,null,null,null,"Octobre",null,null,null,null,null,null,null,null,null,null,null,null,null,null,null,null,null,null,null,null,null,null,null,null,null,null,null,null,null,null,"Novembre",null,null,null,null,null,null,null,null,null,null,null,null,null,null,null,null,null,null,null,null,null,null,null,null,null,null,null,null,null,"Décembre"]
[null,null,null,null,null,null,1,2,3,4,5,6,7,8,9,10,11,12,13,14,15,16,17,18,19,20,21,22,23,24,25,26,27,28,29,30,31,1,2,3,4,5,6,7,8,9,10,11,12,13,14,15,16,17,18,19,20,21,22,23,24,25,26,27,28,29,30,31,1,2,3,4,5,6,7,8,9,10,11,12,13,14,15,16,17,18,19,20,21,22,23,24,25,26,27,28,29,30,1,2,3,4,5,6,7,8,9,10,11,12,13,14,15,16,17,18,19,20,21,22,23,24,25,26,27,28,29,30,31,1,2,3,4,5,6,7,8,9,10,11,12,13,14,15,16,17,18,19,20,21,22,23,24,25,26,27,28,29,30,1,2,3,4,5,6,7,8,9,10,11,12,13,14,15,16,17,18,19,20,21,22,23,24,25,26,27,28,29,30,31]
[null,null,null,null,null,null,"Me","Je","Ve","Sa","Di","Lu","Ma","Me","Je","Ve","Sa","Di","Lu","Ma","Me","Je","Ve","Sa","Di","Lu","Ma","Me","Je","Ve","Sa","Di","Lu","Ma","Me","Je","Ve","Sa","Di","Lu","Ma","Me","Je","Ve","Sa","Di","Lu","Ma","Me","Je","Ve","Sa","Di","Lu","Ma","Me","Je","Ve","Sa","Di","Lu","Ma","Me","Je","Ve","Sa","Di","Lu","Ma","Me","Je","Ve","Sa","Di","Lu","Ma","Me","Je","Ve","Sa","Di","Lu","Ma","Me","Je","Ve","Sa","Di","Lu","Ma","Me","Je","Ve","Sa","Di","Lu","Ma","Me","Je","Ve","Sa","Di","Lu","Ma","Me","Je","Ve","Sa","Di","Lu","Ma","Me","Je","Ve","Sa","Di","Lu","Ma","Me","Je","Ve","Sa","Di","Lu","Ma","Me","Je","Ve","Sa","Di","Lu","Ma","Me","Je","Ve","Sa","Di","Lu","Ma","Me","Je","Ve","Sa","Di","Lu","Ma","Me","Je","Ve","Sa","Di","Lu","Ma","Me","Je","Ve","Sa","Di","Lu","Ma","Me","Je","Ve","Sa","Di","Lu","Ma","Me","Je","Ve","Sa","Di","Lu","Ma","Me","Je","Ve","Sa","Di","Lu","Ma","Me","Je","Ve","Sa","Di","Lu","Lu","Ma","Me"]
[null,"HGI",null,null,null,null,"Asie","T","T",null,null,"R","T","T","T","T","R","R","R","R","R","R","R","R","R","R","R","R","R","R","R","R","T","T","T","T","T","T",null,"T","R","T","T","T",null,null,"C","C","C","C","C","C","C","C","C","C","C","C",null,null,"FTC","FTC","FTC","FTC","FTC",null,null,"FTC","FTC","FTC","FTC","FTC",null,null,"FTC","FTC","T","T","T","T",null,"T","T","T","T","T","T",null,"T","T","T","T","T","T",null,"T","T","T","T","T","T","T","T","T","T","R","T","Asie","Asie","Asie","Asie","Asie","Asie","Asie","Asie","Asie","Asie","Asie","Asie","Asie","Asie","Asie",null,"T","T","T","T","T","T",null,"T","T","T","T","R","R","R","T","T","T","T","T",null,null,"T","T","T",null,null,null,null,null,null,null,null,null,null,null,null,null,null,null,null,null,null,null,null,null,null,null,"Asie","Asie","Asie","Asie","Asie"]
[null,"LN"]
[null,"DNT",null,null,null,null,"T","T","T","T",null,"T","T","T","T","T","T",null,"T",null,"T","T","T",null,null,"T","T","T","T","T",null,"T","T","T","T","T","T","T","T","T","T","T","T","T",null,"T","T","T","T","T","T",null,"T","T","T","T","T","T",null,null,"T","T","T","T","T",null,null,"T","T","T","T","T",null,null,"T","T","T","T","T","T","T","T","T","T","T","T","T",null,"T","T","T","T","T",null,null,"R","T","T","T","T",null,null,"T","T","T","T","T",null,null,"T","T","T","T","T",null,null,"T","T","T","T","T",null,null,"T","T","T","T","T",null,null,"T","T","T","T","T",null,null,"R","R","R","R","R","R","R","R","R","R","R","R","R","R"]
[null,null,null,null,null,null,"LBG Closure",null,null,null,null,null,"Réu","LBG Closure",null,null,null,null,null,null,null,null,null,null,null,null,null,null,null,null,null,null,null,null,null,null,null,null,null,null,null,null,null,null,null,null,null,null,null,null,null,null,null,null,null,null,null,null,null,null,null,null,null,null,null,null,null,null,null,null,null,null,null,null,"Simu","Simu",null,null,null,null,null,null,"Simu",null,null,null,null,null,null,null,null,null,null,null,null,"Simu","Simu",null,null,null,"LBG",null,null,null,null,null,null,"LBG",null,null,null,null,null,"Simu","Simu",null,null,null,null,null,null,null,null,null,null,null,null,null,null,null,null,null,null,null,null,null,null,null,null,null,null,null,null,null,null,null,null,null,null,null,null,null,null,null,null,null,null,null,null,null,null,null,null,null,null,null,null,null,null,null,null,null,"Simu","Simu"]
[null,"900 EASy",null,null,null,null,null,null,null,null,null,null,null,null,null,null,null,null,null,null,null,null,null,null,null,null,null,null,null,null,null,null,null,null,null,null,null,null,null,null,null,null,null,null,null,null,null,null,null,null,null,null,null,null,null,null,"D","D","D",null,null,null,null,null,null,null,"P","P","P","P ",null,null,null,null,null,null,null,null,null,null,null,null,null,null,null,null,null,null,null,null,null,null,null,null,null,null,null,null,null,null,null,null,null,null,null,null,null,null,null,null,null,null,null,null,null,null,null,null,null,null,null,null,null,null,null,null,null,null,"Y?",null,null,null,null,"Y","Dubaï",null,null,null,null,null,null,"Y",null,null,null,null,null,null,null,null,"D","D","D","D","D"]
[null,"s/n 230",null,null,null,null,null,null,null,null,null,null,null,null,null,null,null,null,null,null,null,null,null,null,null,null,null,null,null,null,null,null,null,null,null,null,null,null,null,null,null,null,null,null,null,null,null,null,null,null,null,null,null,null,null,null,null,null,null,null,null,null,null,null,null,null,null,null,null,"Y",null,null,null,null,null,null,null,null,null,null,null,null,null,null,null,null,null,null,null,null,null,null,null,null,null,null,null,null,null,null,null,null,null,null,null,null,null,null,null,null,null,null,null,null,null,null,null,null,null,null,null,null,null,null,null,null,null,null,null,null,null,null,null,null,null,null,null,null,null,null,null,null,null,null,null,null,null,null,null,null,null,null,"P","D"]
[null,{"$f":"SUM(H10:FP10)","v":10},null,null,null,null,null,null,null,null,null,null,null,null,null,null,null,null,null,null,null,null,null,null,null,null,null,null,null,null,null,null,null,null,null,null,null,null,null,null,null,null,null,null,null,null,null,null,null,null,null,null,null,null,null,null,4.5,null,5.5]
[null,"F2TH EASy",null,null,null,null,null,null,null,null,null,"P",null,"D","D","D","D",null,null,null,null,null,null,null,null,"D",null,"D",null,null,null,null,"S",null,null,null,null,null,null,null,"D",null,null,null,null,null,null,null,null,null,null,null,null,null,null,null,null,null,null,null,null,null,null,null,null,null,null,null,null,null,null,null,null,null,"M",null,"D","Jet Expo",null,"D","D","D","D","D",null,null,null,null,null,"D","D",null,"D",null,null,null,null,null,null,"P","P","P","P",null,null,"D",null,null,null,null,"F","F","F",null,null,"P","P",null,null,null,null,null,null,null,null,null,null,null,null,null,"D","D",null,null,null,"D","D","D","D",null,null,null,null,null,null,null,"D",null,null,null,null,null,null,"T","D","D",null,null,null,null,null,null,null,null,null,null,null,"P"]
[null,"s/n 228",null,null,null,null,null,null,null,null,null,null,null,null,null,null,null,null,null,null,null,null,null,null,null,"T",null,null,null,null,null,null,null,null,null,null,null,null,null,null,null,null,null,null,null,null,null,null,null,null,null,null,null,null,null,null,null,null,null,null,null,null,null,null,null,null,null,null,null,null,null,null,null,null,null,null,null,null,null,null,null,"M"]
[null,{"$f":"SUM(G13:FP13)","v":96},null,null,null,null,null,null,null,null,null,1.9,null,null,null,null,null,null,null,null,null,null,null,null,null,null,null,null,null,null,null,null,9.5,null,null,null,null,null,null,null,4,null,null,null,null,null,null,null,null,null,null,null,null,null,null,null,null,null,null,null,null,null,null,null,null,null,null,null,null,null,null,null,null,null,1.9,null,3.3,null,null,3.1,7.2,3.6,1.6,9.8000000000000007,null,null,null,null,null,2.9,4.4000000000000004,null,null,null,null,null,null,null,null,1,6.9,null,7.3,null,null,2.4,null,null,null,null,2,null,2.2999999999999998,null,null,6.1,6.9,null,null,null,null,null,null,null,null,null,null,null,null,null,3.6,4.3]
[null,"OCCAS",null,null,null,null,null,null,null,null,null,"T",null,"M",null,null,null,null,null,null,null,"M",null,null,"D","M","S","S","S","S","S","S","S","S","S","S","S","S","S","S","S","S","S","M",null,null,"T","D",null,"D","M",null,"D?","M","T/Y","Practical Training Bod",null,null,null,null,null,null,null,null,null,null,null,null,null,null,null,"D",null,null,"T","T",null,null,"D",null,null,"M","M?",null,null,null,"M",null,null,null,null,"P","M",null,"D","D",null,null,null,null,"D","D","D","D","D","D","D","D","D","D","D","D",null,"P",null,null,null,"Y",null," M",null,null,null,"M?","M?","M?",null,"T",null,null,"T",null,"M","M",null,null,null,"Practical training F900EX EASy s/n145 F-GSNA",null,null,null,null,null,null,null,null,null,null,null,null,null,"Practical Training F2THLX s/n230 F-HSAM",null,null,null,null,null,null,null,null,null,null,null,null,null,null,null,null,"M?",null,null,null,"M"]
[null,null,null,null,null,null,null,null,null,null,null,null,null,null,null,null,null,null,null,null,null,null,null,null,null,"M","M",null,null,null,null,null,null,null,"T",null,null,null,null,"M","M","D","M",null,null,null,null,null,null,"M",null,null,null,null,null,"Y","M",null,null,null,null,null,null,null,null,null,null,"Y",null,null,"Y",null,null,null,null,null,null,null,null,null,null,null,null,null,null,null,null,null,null,null,null,null,null,null,null,"M",null,null,null,null,null,null,null,"M",null,null,null,null,null,null,"F","F","F",null,null,null,null,"M",null,null,null,null,null,null,null,null,null,"M",null,null,null,null,null,null,null,null,null,null,null,null,null,null,null,null,null,null,"M"]
[null,{"$f":"SUM(G16:FP16)","v":149.1},null,null,null,null,null,null,null,null,null,2.8,null,null,null,null,null,null,null,null,null,1.4,null,null,2,2.2999999999999998,null,null,null,null,null,null,null,null,2.2999999999999998,null,null,null,null,4,"M",5.5,1.8,1.8,null,null,1.9,3,null,6,2.5,null,null,2.5,4.3,7,1,null,null,null,null,null,null,null,null,null,null,1,null,null,1,3.2,null,null,2.9,2.5,null,null,2.2999999999999998,null,null,null,null,null,null,null,2.6,null,null,null,null,2.2000000000000002,null,null,7.3,8.4,null,null,null,null,13.6,null,1.9,0.9,null,7.1,5.5,6.5,2,3.1,3.2,12.9,2.2999999999999998,2,null,null,null,null,null,null,null,null,null,null,null,null,null,null,null,null,1.5,null,1.1000000000000001]
[null,"7X",null,null,null,null,"D","D","D","D","D","D",null,"D","D",null,"D","D","D","D","D","D","D",null,null,"P",null,null,null,null,null,null,null,null,null,null,null,null,null,"D",null,null,"P","P","D","D",null,"D",null,null,null,null,"D",null,null,null,null,null,null,null,null,"D","D",null,"D",null,null,"D","D","D","D","D",null,null,null,null,"D","Jet Expo",null,"D",null,"D",null,"D","D","D","D","D","D","D","D","CIBAS",null,null,"D","D","D","D","D","D","D","D","D","D","D","D","D","D","D","D","D","D","D","D","D",null,null,null,null,null,null,null,null,"D",null,null,"T",null,"D",null,"D","D",null,"Y","Dubaï",null,null,null,null,null,null,"Y","P",null,null,"NBAA",null,null,"P",null,"D","D","D","D","D","D"]
[null,"s/n 207",null,null,null,null,null,null,null,null,null,null,null,null,null,null,null,null,null,null,null,null,null,null,null,null,null,null,null,null,null,null,null,null,null,null,null,null,null,null,null,null,null,"D",null,null,null,null,null,null,null,null,null,null,null,null,null,null,null,null,null,null,null,null,null,null,null,null,null,null,null,null,null,null,null,null,null,null,null,null,null,null,null,null,null,null,null,null,null,null,null,null,null,null,null,null,null,null,null,null,null,null,null,null,null,null,null,null,null,null,null,null,null,null,null,null,null,null,null,null,null,null,null,null,null,null,null,null,"Y",null,null,null,null,null,"P",null,null,"P",null,"D","D",null,null,"D",null,null,"P","P"]
[null,{"$f":"SUM(G19:FP19)","v":249.30000000000004},null,null,null,null,null,null,null,9.1,1.2,null,null,2.8,4.8,null,0.9,null,10.199999999999999,null,11.8,null,3.1,null,null,5.6,null,null,null,null,null,null,null,null,null,null,null,null,null,7.7,null,null,9,4.0999999999999996,null,5.8,null,4.7,null,null,null,null,4.5,null,null,null,null,null,null,null,null,1.8,2.5,null,4,null,null,7.8,null,5.8,11.1,12.8,null,null,null,null,3.3,null,null,3.1,null,4.7,null,10.3,null,4.3,2.1,2.2999999999999998,null,null,4.8,null,null,null,null,null,1.9,2.2000000000000002,4,null,3.9,2.7,2.2000000000000002,2.1,null,3.7,3.9,4.4000000000000004,6,4.3,null,5,1.9,1.8,12.5,null,null,null,null,null,null,null,null,3.6,null,null,null,null,3.8,null,6.8,6.6]
[]
[null,"s/n "]
[null,{"$f":"SUM(G22:FP22)","v":0},null,null,null,null,null,null,null,null,null,null,null,null,null,null,null,null,null,null,null,null,null,null,null,null,null,null,null,null,null,null,null,null,null,null,null,null,null,null,null,null,null,null,null,null,null,null,null,null,null,null,null,null,null,null,null,null,null,null,null,null,null,null,null,null,null,null,null,null,null,null,null,null,null,null,null,null,null,null,null,null,null,null,null,null,null,null,null,null,null,null,null,null,null,null,null,null,null,null,null,null,null,null,null,null,null,null,null,null," "]
[null,null,null,null,null,null,null,null,null,null,null,null,null,null,null,null,null,null,null,null,null,null,null,null,null,null,null,null,null,null,null,null,null,null,null,null,null,null,null,null,null,null,null,null,null,null,null,null,null,null,null,null,null,null,null,null,null,null,null,null,null,null,null,null,null,null,null,null,null,null,null,null,null,null,null,null,null,null,null,null,null,null,null,null,null,null,null,null,null,null,null,null,null,null,null,null,null,null,null,null,null,null,null,null,null,null,null,null,null,null,null,null,null,null,null,null,null,null,null,null,null,null,null,null,null,null,null,null,null,null,null,null,null,null,null,null,null,null,null,null,null,null,null,null,null,null,null,null,null,null,null,null,"COP 21"]
[null,"Missions en attentes",null,null,null,null,null,null,null,null,null,null,null,null,null,null,null,null,null,null,null,null,null,null,null,null,null,null,null,null,null,null,null,null,null,null,null,null,null,null,null,null,null,null,null,null,null,null,null,null,null,null,null,null,null,null,null,null,null,null,null,null,null,null,null,null,null,null,null,null,"ATO",null,null,null,null,null,null,null,null,null,null,null,null,null,null,null,null,null,null,null,null,null,null,null,null,null,null,null,null,null,null,null,null,null,null,null,null,null,null,null,null,null,null,null,null,null,null,null,null,null,null,null,null,null,null,null,null,null,"Y?",null,null,null,null,null,null,null,null,null,null,null,null,null,null,null,null,null,null,null,null,null,null,"M?",null,null,null,null,null,null,null,null,null,null,"M?",null,null,"M",null,"MEP"," T "," T "," T "," T "," T "," T "," T "," T "," T ","MEP"]
[null,null,null,null,null,null,null,null,null,null,null,null,null,null,null,null,null,null,null,null,null,null,null,null,null,null,null,null,null,null,null,null,null,null,null,null,null,null,null,null,null,null,null,null,null,null,null,"D/S",null,null,"D/S","D/S","D/S","D/S","D/S","D/S","D/S","D/S","D/S","D/S","D/S","D/S","D/S","D/S",null,null,null,"T","T","T","T","T","T","T","T","T","T","T","T",null,null,null,null,null,null,null,null,null,null,null,null,null,null,null,null,null,null,null,null,null,null,null,null,null,null,null,null,null,null,null,null,null,null,null,null,null,null,null,null,null,null,null,null,null,null,null,null,null,"Y?"]
[null,null,null,null,null,null,null,null,null,null,null,null,null,"ATO","ATO","ATO",null,null,null,null,null,null,null,null,null,null,null,null,null,null,null,null,null,null,null,null,null,null,null,null,null,null,null,null,null,null,null,null,null,null,null,null,null,null,null,null,null,null,null,null,null,null,null,null,null,null,null,null,null,null,null,null,null,null,null,null,null,null,null,null,null,null,null,null,null,null,null,null,null,null,null,null,null,null,null,null,null,null,null,null,null,null,null,null,null,"ATO","ATO",null,null,"ATO TRI F2000 Ex Easy"]
[null,"H 1 sem",null,{"$f":"SUM('[1]2015-1 '!B27:C27)","v":{"$error":"#REF!"}}]
[null,20,null,"Réu","ATO"]
[null,"7x","9z","2z","5x"]
[null,50,"9c","2c","8x",null,1,2,3,4,5,6,7,8,9,10,11,12,13,14,15,16,17,18,19,20,21,22,23,24,25,26,27,28,29,30,31,1,2,3,4,5,6,7,8,9,10,11,12,13,14,15,16,17,18,19,20,21,22,23,24,25,26,27,28,29,30,31,1,2,3,4,5,6,7,8,9,10,11,12,13,14,15,16,17,18,19,20,21,22,23,24,25,26,27,28,29,30,1,2,3,4,5,6,7,8,9,10,11,12,13,14,15,16,17,18,19,20,21,22,23,24,25,26,27,28,29,30,31,1,2,3,4,5,6,7,8,9,10,11,12,13,14,15,16,17,18,19,20,21,22,23,24,25,26,27,28,29,30,1,2,3,4,5,6,7,8,9,10,11,12,13,14,15,16,17,18,19,20,21,22,23,24,25,26,27,28,29,30,31]
[null,"PMI",null,null,null,null,"Réu","Réu",null,null,null,null,"Réu","D","SC","SC",null,null,null,null,null,"M","Réu",null,null,null,"Réu","SC",null,"ATO","S1","S1","S",null,null,"S2","S1",null,null,"S1","S1","S1","SC","M",null,null,null,null,null,null,null,null,null,null,null,null,null,null,null,null,null,null,null,null,null,null,null,null,"Réu","Réu","Mep",null,null,null,"Mep","M","M","Mep","M",null,null,null,null,null,null,null,null,null,null,null,null,null,null,null,null,null,"Simu","SC","Réu","Med",null,"Simu",null,"M","Réu","DFS","ATO",null,null,"Réu","ATO",null,null,null,"Réu",null,null,null,null,null,null,null,null,"Réu",null,"DFS",null,null,null,null,null,null,null,"M","P",null,null,"P","Réu",null,null,null,null,null,"Mep","Réu Sphynx",null,null,"Mep",null,null,null,"Réu","T","D","D","D",null,null,"Réu",null,null,null,null,null,"Simu",null,"EI","M","EI",null,null,"T","Réu","EI","EI","EI"]
[null,"E","E","E",null,null,"Réu","Simu",null,null,null,null,null,null,null,"Réu",null,null,null,null,null,"Simu",null,null,null,null,"Réu",null,null,null,null,null,null,null,null,null,null,null,null,"M","M",null,"M",null,null,null,null,null,null,null,null,null,null,null,null,null,null,null,null,null,null,null,null,null,null,null,null,null,null,null,"Y",null,null,null,null,"T",null,"Réu",null,null,null,null,null,null,null,null,null,null,null,null,null,null,null,null,null,null,null,null,"Mep","Mep",null,null,null,"Simu",null,null,"ATO",null,null,"Réu",null,null,null,null,null,null,null,null,null,null,"Mep",null,null,null,null,null,null,null,null,null,null,null,null,null,null,null,null,null,null,null,null,null,null,null,null,null,null,null,null,null,null,null,null,"D",null,null,null,null,null,null,null,null,null,null,null,"EI",null,null,null,null,null,null,null,null,null,null,null,"Simu"]
[null,"E","E","E",null,null,null,null,null,null,null,null,null,null,null,null,null,null,null,null,null,null,null,null,null,null,"S2",null,null,null,null,null,null,null,null,null,null,null,null,null,"M",null,"Mep",null,null,null,null,null,null,null,null,null,null,null,null,null,null,null,null,null,null,null,null,null,null,null,null,null,null,null,null,null,null,null,null,"Mep",null,"Mep"]
[null,{"$f":"SUM(G34:GE34)","v":89.700000000000017},null,{"$f":"'2015-1 '!B34","v":143.80000000000001},null,null,null,1,null,null,null,null,null,2.8,null,null,null,null,null," ",null,3.4,null,null,null,null,null,null,null,null,null,null,9.5,null,null,null,null,null,null,null,1.1000000000000001,null,1.8,1.8,null,null,null,null,null,null,null,null,null,null,null,null,null,null,null,null,null,null,null,null,null,null,null,null,null,null,1,null,null,null,null,3.2,1.6,null,null,null,null,null,null,null,null,null,null,null,null,null,null,null,null,null,null,null,4,null,null,null,null,4,null,4.9000000000000004,null,2.4,null,null,null,null,null,null,null,null,null,null,null,null,null,null,null,null,null,null,null,2.2000000000000002,null,null,null,null,null,null,null,1.7,6.3,null,null,6.7,null,null,null,null,null,null,null,null,null,null,null,null,null,null,null,3,1,10,8.9,null,null,null,null,null,null,null,null,4,null,null,1.9,null,null,null,1.5]
[null,"PGU",null,null,null,null,null,"Simu","T",null,null,"T","Réu",null,"Réu","Simu",null,null,"Mep",null,"Réu","Réu","D",null,null,"M","Réu","S1","S2","S2",null,null,"M","S1","S1","S1",null,null,null,null,null,null,null,null,null,null,null,null,null,null,null,null,null,null,null,null,null,null,null,null,null,"Med","Med",null,"D",null,null,"Saint Cloud",null,null,null,"SC",null,null,"Simu","T","Réu",null,null,null,null,"M",null,null,null,null,null,null,null,null,null,"Mep","Mep","D","D","D","D","D","D","D","D","D","Mep",null,null,null,null,null,null,"Simu","F","F","F","Réu",null,null,"Simu","M",null,null,null,null,null,null,null,"Simu","T","M","D",null,"T","Réu","Réu","M","Réu",null,null,"Mep","D","D","D","D",null,null,"Saint Cloud",null,null,null,null,null,"D","D","D","D","D","D","D",null,null,"Simu","Mep",null,"M",null,null,"Saint Cloud",null,null,null,null,null,null,"Mep","M","Simu","Med","Med"]
[null,"E","E","E",null,null,null,null,null,null,null,null,null,null,"Réu",null,null,null,"D",null,null,null,null,null,null,"M","M",null,null,null,null,null,null,null,"ANG","M",null,null,null,null,null,null,null,null,null,null,null,null,null,null,null,null,null,null,null,null,null,null,null,null,null,null,null,null,null,null,null,null,"Réu","Réu",null,"Simu",null,null,null,null,null,null,null,null,null,"Simu",null,null,null,null,null,null,null,null,null,null,null,null,null,null,null,null,null,null,null,null,null,null,null,null,null,null,null,null,null,null,null,null,null,null,"SC",null,null,null,null,null,null,null,null,"M?",null,null,null,null,null,null,null,null,null,null,null,null,null,null,null,null,null,null,null,"Med","Med","DFS",null,null,null,null,null,null,null,null,null,null,null,"Réu","T",null,null,null,null,"EI","ATO",null,"Réu",null,null,null,"Y","Mep"]
[null,"E","E","E","C",null,null,null,null,null,null,null,null,null,null,null,null,null,null,null,null,null,null,null,null,null,"Mep",null,null,null,null,null,null,null,null,null,null,null,null,null,null,null,null,null,null,null,null,null,null,null,null,null,null,null,null,null,null,null,null,null,null,null,null,null,null,null,null,null,null,null,null,null,null,null,null,null,null,null,null,null,null,null,null,null,null,null,null,null,null,null,null,null,null,null,null,null,null,null,null,null,null,null,null,null,null,null,null,null,null,null,null,null,null,null,null,null,"SC",null,null,null,null,null,null,null,null,null,null,null,null,null,null,null,null,null,null,null,null,null,null,null,null,null,null,null,null,null,null,null,null,null,null,null,null,null,null,null,null,null,null,null,"Mep",null,null,null,null,null,"Simu"]
[null,{"$f":"SUM(G38:GE38)","v":130.39999999999998},null,{"$f":"'2015-1 '!B38","v":89.7},null,null,null,4,null,null,null,2.8,null,null,null,null,null,null,0.9,null,null,null,3.1,null,null,2.2999999999999998,null,null,null,null,null,null,null,null,null,0.5,null,null,null,null,null,null,null,null,null,null,null,null,null,null,null,null,null,null,null,null,null,null,null,null,null,null,null,null,4.3,null,null,null,null,null,null,4,null,null,4,2.5,null,null,null,null,null,5.6,null,null,null,null,null,null,null,null,null,null,null,null,null,null,1.9,2.2000000000000002,4,null,3.9,2.7," ",null,null,null,null,null,null,4,2,null,2.2999999999999998,null,null,null,4,null,null,null,null,null,null,null,null,null,2.2999999999999998,null,3.8,null,1.5,null,null,1.7,null,null,null,null,null,6.7,null,8,null,null,null,null,null,2,null,null,11,null,2,1.8,null,10.6,null,null,4,4,2,null,0,null,null,null,4,null,null,null,null,null,null,null,4]
[null,"DBR",null,null,null,null,null,"Simu",null,null,null,null,null,null,null,null,null,null,null,null,null,null,null,null,null,null,null,null,null,null,null,null,null,null,null,null,null,null,null,null,null,null,"Sc","M","D","D","T","D","Sc","D",null,null,"D",null,"T/Y","Réu","M",null,null,null,"Mep","T","Mep","Med","Med",null,null,"Y",null,"T","Mep","D",null,null,"Saint Cloud",null,null,null,null,null,null,"Recurrent 7X FAA",null,null,null,null,null,null,null,"Simu","SC","T",null,null,null,"Mep",null,"M","M","T?",null,null,null,"Réu","Réu","D","ATO",null,null,"Réu",null,"Réu","Réu","P",null,"P","P",null,null,null,"Mep",null,null,"Simu",null,"Mep","T","T",null,null,"D","D","M",null,"Réu",null,null,null,null,null,null,null,null,null,null,null,"M","PL","PL",null,"D","D","D","D","D","PL",null,null,null,"Réu","PL","D","PL",null,null,"T","Simu","Réu",null,null,null,null,"T","Réu","-","M?"]
[null,"E","E","E",null,null,null,null,null,null,null,null,null,null,null,null,null,null,null,null,null,null,null,null,null,null,null,null,null,null,null,null,null,null,null,null,null,null,null,null,null,null,"M","D",null,null,null,null,null,null,null,null,null,null,"Mep",null,null,null,null,null,null,"Mep","T",null,null,null,null,"Mep",null,"Y",null,null,null,null,"Simu","Réu","M",null,"Réu",null,null,null,null,null,null,null,null,null,null,null,null,null,null,null,null,"M",null,null,null,"S",null,null,null,"Simu",null,null,null,null,null,"Réu",null,"Réu",null,null,null,null,null,null,null,null,"M",null,null,"Réu",null,"Réu",null,null,null,null,null,null,null,null,null,null,null,null,null,null,null,null,null,null,null,null,null,null,"Réu",null,null,null,null,null,null,null,null,null,null,null,null,null,null,null,null,null,null,null,null,null,null,null,null,"M"]
[null,"E","E",null,null,null,null,null,null,null,null,null,null,null,null,null,null,null,null,null,null,null,null,null,null,null,null,null,null,null,null,null,null,null,null,null,null,null,null,null,null,null,"Mep",null,null,null,null,null,null,null,null,null,null,null,null,null,null,null,null,null,null,null,"Mep",null,null,null,null,null,null,null,null,null,null,null,null,"Réu",null,null,null,null,null,null,null,null,null,null,null,null,null,null,null,null,null,null,null,null,null,null,null,null,null,null,null,null," ",null,null,null,null,null,null,null,null,null,null,null,null,null,null,null,"Mep",null,null,null,null,"Mep"]
[null,{"$f":"SUM(G42:GE42)","v":159.89999999999998},null,{"$f":"'2015-1 '!B42","v":179.29999999999998},null,null,null,1,null,null,null,null,null,null,null,null,null,null,null,null,null,null,null,null,null,null,null,null,null,null,null,null,null,null,null,null,null,null,null,null,null,null,1.8,1.8,null,5.8,1.9,3,null,3,null,null,4.5,null,4.3,null,1,null,null,null,null,2,3,null,null,null,null,1,null,6.1,null,3.2,null,null,4,null,1.6,null,null,null,null,null,null,null,null,null,null,null,null,27,null,3.1,null,null,null,1.8,null,null,2.5,null,null,null,null,4,null,2.4,null,null,null,null,null,null,null,2,null,6.1,6.9,null,null,null,1.2,null,null,4,null,null,2.2999999999999998,1.9,null,null,6.8,6.6,1.1000000000000001,null,null,null,null,null,null,null,null,null,null,null,null,null,2.2000000000000002,null,null,null,7.2,null,2.2999999999999998,null,7,null,null,null,null,null,null,3,null,null,null,2,4,null,2,null,null,null,1.5]
[null,"OFR",null,null,null,null,"Mep",null,null,null,null,null,null,null,null,null,null,null,null,null,"Simu","Réu",null,null,null,null,null,null,null,null,null,null,null,null,null,null,null,null,null,"Mep","Mep",null,"P","P",null,null,null,null,null,null,null,null,null,null,null,null,null,null,null,null,"Recurrent FAA F2000EAsy",null,null,null,null,null,null,null,"Simu","Y","Mep",null,null,null,"T","Réu","D","Jet Expo",null,"D",null,"Saint Cloud",null,null,null,null,null,null,null,"Simu","OAB",null,null,null,null,null,null,null,"M",null,"D","D","D","D","D","D","D","D","D","D","D","D",null,null,null,null,null,null,null,null,null,null,null,"Réu",null,"Mep","Réu","T",null,null,"Saint Cloud",null,null,null,null,"D","D","D","D","Mep","Y","Mep",null,null,"Mep","Mep","Mep","Y","Mep",null,null,"Réu","Y","Y","Réu","Réu",null,null,null,"Réu"," T ","Réu",null,null,null,null,"ATO","EI","ATO","ATO",null,null,"Réu","Réu",null,"T"]
[null,"E","C","I",null,null,null,null,null,null,null,null,null,null,null,null,null,null,null,null,null,null,null,null,null,null,null,null,null,null,null,null,null,null,null,null,null,null,null,"Y",null,null,null,null,null,null,null,null,null,null,null,null,null,null,null,null,null,null,null,null,null,null,null,null,null,null,null,null,null,"Mep",null,null,null,null,null,null,null,null,null,null,null,"Mep",null,"LPE","LPE","LPE",null,null,null,null,null,null,null,null,null,null,null,null,null,null,null,null,null,null,null,null,null,null,null,null,null,null,null,null,null,null,null,null,null,null,null,null,null,null,null,"Réu","Mep",null,null,null,null,"Réu",null,null,null,null,null,null,null,null,"Mep",null,null,null,null,null,null,"Mep",null,null,null,null,null,"Mep",null,null,null,null,null,null,null,null,"Réu"]
[null,null,null,null,null,null,null,null,null,null,null,null,null,null,null,null,null,null,null,null,null,null,null,null,null,null,null,null,null,null,null,null,null,null,null,null,null,null,null,null,null,null,null,null,null,null,null,null,null,null,null,null,null,null,null,null,null,null,null,null,null,null,null,null,null,null,null,null,null,null,null,null,null,null,null,null,null,null,null,null,null,"Réu"]
[null,{"$f":"SUM(G46:GE46)","v":139.4},null,{"$f":"'2015-1 '!B46","v":244.49999999999997},null,null,null,null,null,null,null,null,null,null,null,null,null,null,null,null,null,null,null,null,null,null,null,null,null,null,null,null,null,null,null,null,null,null,null,9.5,null,null,9,1,null,null,null,null,null,null,null,null,null,null,null,null,null,null,null,null,null,null,null,null,null,null,null,null,27,null,null,null,null,null,2.9,null,3.3,null,null,3.1,null,"Mep",null,null,null,null,null,null,null,null,null,null,null,null,null,null,null,null,2,null,13.6,null,1.9,null,null,7.1,5.5,6.5,2,3.1,1.2,12.9,null,null,null,null,null,null,null,null,null,null,null,null,null,null,null,1.9,null,null,null,null,null,null,null,6,null,"3.6","10.7",null,null,null,null,null,null,null,null,10,null,null,null,null,2.9,2,null,null,null,null,null,null,3,null,null,null,null,null,null,null,null,null,null,null,null,null,2]
[null,"JPL",null,null,null,null,"Mep","Réu","Réu",null,null,"Réu",null,null,"D",null,"D",null,null,null,null,"Réu","Mep","DFS",null,"P","S1",null,"S1","S1",null,null,null,null,null,null,null,null,null,null,null,null,null,null,null,null,null,null,null,null,null,null,null,"Mep","T","Mep","M","D","D",null,null,"D","D",null,null,null,null,null,null,null,null,null,null,null,"Réu","Réu","Mep","T","T","T",null,null,null,"ATO","ATO",null,null,null,"Simu","ATO",null,"P",null,null,"D","D",null,"M","M",null,null,null,"Saint Cloud",null,null,null,null,null,null,null,"F","F","F","SC",null,null,"Réu","Mep","Réu","Réu",null,null,null,"M","Y","Y","Y","ATO",null,null,null,"Mep","Réu",null,"Mep",null,null,"ATO","ATO",null,"ATO","ATO",null,null,null,"Mep","Réu",null,null,null,null,null,"Réu","Réu",null,"Simu",null,null,null,"Réu"," T "," T ",null,null,null,"Med","Med","Réu","Réu","Réu",null,null,"Saint Cloud"]
[null,"E","E","E",null,null,null,null,null,null,null,"T",null,null,null,null,"Mep",null,null,null,null,null,"Y",null,null,null,null,null,null,null,null,null,null,null,null,null,null,null,null,null,null,null,null,null,null,null,null,null,null,null,null,null,null,"M","T","T","D",null,null,null,null,null,null,null,null,null,null,null,null,null,null,null,null,null,"M",null,null,null,null,"Mep",null,null,null,null,null,null,null,null,null,"Simu",null,null,null,null,null,null,null,null,"Simu",null,null,null,"Simu","M","T","SC","ATO",null,null,null,null,null,null,null,null,null,null,"Y",null,"M",null,null,null,"Mep",null,null,"Mep",null,null,null,null,"Réu","Mep",null,"Réu",null,null,"Réu",null,null,null,null,null,null,null,"Réu","M",null,null,null,null,null,"Simu",null,null,null,null,null,null,null,"D",null,null,null,null,null,"Mep?",null,null,null,null,null,"T",null,"EI"]
[null,null,null,null,null,null,null,null,null,null,null,null,null,null,null,null,null,null,null,null,null,null,"Mep",null,null,null,null,null,null,null,null,null,null,null,null,null,null,null,null,null,null,null,null,null,null,null,null,null,null,null,null,null,null,"Mep",null,"Mep",null,null,null,null,null,null,null,null,null,null,null,null,null,null,null,null,null,null,null,null,null,null,null,null,null,null,null,null,null,null,null,null,null,null,null,null,null,null,null,null,null,null,null,null,null,null,null,"Mep","Mep",null,null,null,null,null,null,null,null,null,null,null,null,"Mep",null,null," ",null,null,null,null,null,null,null,null,null,null,null,null,null,"Mep",null,null,null,null,null,null,null,null,null,null,"Mep",null,null,null,null,null,null,null,null,null,null,null,null,null,null,null,null,null,null,null,null," "]
[null,{"$f":"SUM(G50:GE50)","v":120.30000000000003},null,{"$f":"'2015-1 '!B50","v":185.8},null,null,null,null,null,null,null,2.8,null,null,4.8,null,0.9,null,null,null,null,null,null,2.1,null,2.2999999999999998,null,null,null,null,null,null,null,null,null,null,null,null,null,null,null,null,null,null,null,null,null,null,null,null,null,null,null,2.5,null,1,5.5,null,5.5,null,null,1.8,2.5,null,null,null,null,null,null,null,null,null,null,null,1.9,null,null,5.9,7.8,1.9,null,null,null,null,null,null,null,null,4,4,null,2.2000000000000002,null,null,7.3,6.6,null,null,6,null,null,null,4,0.9,1.4,null,null,null,null,null,2.2000000000000002,null,2.2000000000000002,null,null,null,null,0.4,null,null,null,null,null,null,null,null,5.8,null,null,null,null,null,null,null,null,null,null,null,null,null,3,3,null,null,null,null,2.2000000000000002,null,null,null,null,null,4,null,null,2,null,null,null,null,6.9,2,null,null,null,null,null,null,null,null,null,null,1]
[null,"OPE",null,null,null,null,null,"Mep","D","D","D",null,null,null,null,null,null,null,null,null,"Simu","M",null,null,null,"P","Réu",null,null,null,null,null,null,null,"T","T","S2","S1","S1","S2","D","D",null,null,null,null,null,null,null,null,null,null,null,null,null,null,null,null,null,null,null,"Mep","Réu","Mep","Y","Y",null,"D","D","D","Réu","Simu",null,null,null,null,null,null,null,null,null,"Recurrent 7X FAA",null,null,null,null,null,null,null,"Simu",null,null,"D",null,null,"Réu",null,null,"Saint Cloud",null,null,null,"Simu",null,"Mep",null,"Mep","Mep","D","D","D","D","D","D","D",null,null,null,"Mep","Réu",null,null,"Mep",null,"SC","Med","Med","Med","Réu",null,"T",null,null,"Mep",null,null,null,"Saint Cloud",null,null,null,null,"P",null,null,"NBAA",null,null,"P",null,null,null,null,"Réu",null,null,null,"D","D","D","D","D","Mep",null,null,"Simu","ATO","P","ATO","ATO",null,null,"T",null,"Simu","REU","EI"]
[null,"E","E","E",null,null,null,null,null,null,null,null,null,null,null,null,null,null,null,null,null,null,null,null,null,null,null,null,null,null,null,null,null,null,null,null,"Simu",null,null,"M",null,null,null,null,null,null,null,null,null,null,null,null,null,null,null,null,null,null,null,null,null,"T",null,null,null,null,null,null,null,null,"M",null,null,null,null,null,null,null,null,null,null,null,null,null,null,null,null,null,null,null,null,null,null,null,null,null,null,null,"Réu","T?",null,null,null,null,"Y",null,null,null,null,null,null,null,null,null,null,null,null,null,null,null,null,null,null,null,null,null,null,null,null,null,null,null,null,"Réu",null,null,null,"Réu","Réu",null,"Mep","M",null,null,null,null,"P","P",null,null,null,null,null,"D",null,null,null,null,null,null,null,"Mep",null,null,null,null,null,null,null,null,null,null,null,null,null,"T"]
[null,null,null,"C",null,null,null,null,null,null,null,null,null,null,null,null,null,null,null,null,null,null,null,null,null,null,null,null,null,null,null,null,null,null,null,null,null,null,null,null,null,null,null,null,null,null,null,null,null,null,null,null,null,null,null,null,null,null,null,null,null,"Mep",null,null,null,null,null,null,null,null,null,null,null,null,null,null,null,null,null,null,null,null,null,null,null,null,null,null,null,null,null,null,null,null,null,null,null,null,"Simu",null,null,null,null,null,null,null,null,null,null,null,null,null,null,null,null,null,null,null,null,null,null,null,null,null,null,null,null,null,null,null,null,null,null,"Mep",null,null,null,null,null,null,null,"Mep"]
[null,{"$f":"SUM(G54:GE54)","v":177.1},null,{"$f":"'2015-1 '!B54","v":168.59999999999997},null,null,null,null,null,9.1,1.2,null,null,null,null,null,null,null,null,null,4,1.4,null,null,null,3.3,null,null,null,null,null,null,null,null,2.2999999999999998,1,0.5,null,null,null,5.3,5.5,null,null,null,null,null,null,null,null,null,null,null,null,null,null,null,null,null,null,null,1.6,null,null,8.8000000000000007,null,null,7.8,null,5.8,0,4,null,null,null,null,null,null,null,null,null,null,null,null,null,null,null,null,null,27,null,null,null,null,null,null,null,null,4,null,null,null,4,null,1,null,null,null,6,4.3,null,5,1.9,1.8,12.5,null,null,null,null,null,null,null,null,null,null,null,null,null,null,null,1.5,null,null,null,null,null,null,null,null,null,null,4,11,null,null,null,3,null,8.5,null,null,null,null,null,null,null,null,null,4,4,null,null,null,null,null,4,null,2,null,null,null,null,null,null,6]
[null,"MDU",null,null,null,null,"Réu","Simu",null,null,null,"P","Simu","Réu","Réu","Simu",null,null,"D","D","D","D",null,null,"D","M","Réu","S2",null,"M?","Simu",null,"M","S2","S2","Y","Y","S2","S2","Mep","S2","S2",null,"T",null,null,null,null,null,null,null,null,null,null,null,null,null,null,null,null,null,null,null,null,null,null,null,null,null,null,"M","Simu",null,null,"T","Réu","D","Jet Expo",null,"D",null,"M",null,"SC","M",null,"M",null,"Y","Réu","Réu",null,"Réu",null,null,null,null,null,null,null,null,null,"Mep","Y","Mep","Simu","ATO",null,null,"Saint Cloud",null,null,null,null,null,null,"Simu","Mep","Mep","Med","Med",null,null,"M","M?","Simu","T","M",null,null,null,"Simu",null,"Y","Dubaï",null,null,null,null,null,null,"Y",null,null,null,null,"D","Mep","Y","Mep",null,null,"P",null,null,"Simu",null,null,null,"Simu","Mep","Y","Mep",null,null,"M",null,"Mep","Y","Mep",null,null,"Mep","M","Simu"]
[null,"C","E","E",null,null,null,null,null,null,null,null,null,"M","Réu",null,null,null,null,null,null,null,null,null,null,null,null,null,null,null,null,null,null,null,null,"M",null,null,null,"S","M",null,null,null,null,null,null,null,null,null,null,null,null,null,null,null,null,null,null,null,null,null,null,null," ",null,null,null,null,null,null,4,null,null,null,null,null,null,null,null,null,null,null,null,null,null,null,null,"Mep",null,null,null,null,null,null,null,null,null,null,null,null,null,null,null,null,null,null,null,null,"Simu",null,null,null,"Simu",null,null,"SC","Y","Réu",null,null,null,null,null,null,"M?","M?",null,null,null,null,null,null,null,null,null,null,null,null,null,null,null,null,null,null,null,null,null,null,null,null,null,null,null,null,null,null,null,null,"Réu",null,null,null,null,null,null,null,null,null,null,null,null,"Y","Mep"]
[null,"E","E","E","E",null,null,null,null,null,null,null,null,"Mep","Réu",null,null,null,null,null,null,null,null,null,null,null,null,null,null,null,null,null,null,null,null,null,null,null,null,"Mep","M",null,null,null,null,null,null,null,null,null,null,null,null,null,null,null,null,null,null,null,null,null,null,null,null,null,null,null,null,null,null,null,null,null,null,null,null,null,null,null,null,null,null,null,null,null,null,null,"Simu",null,null,null,null,null,null,null,null,null,null,null,null,null,null,null,null,null,null,null,null,null,null,null,null,null,null,null,"SC","Mep","Mep"]
[null,{"$f":"SUM(G58:GE58)","v":145.10000000000002},null,{"$f":"'2015-1 '!B58","v":150.09999999999997},null,null,null,4,null,null,null,1.9,4,null,null,null,null,null,9.3000000000000007,null,11.8,null,null,null,2,1.2,null,null,null,null,4,null,null,null,null,0.5,null,null,null,1.7,1.1000000000000001,null,null,null,null,null,null,null,null,null,null,null,null,null,null,null,null,null,null,null,null,null,null,null,null,null,null,null,null,null,null,4,null,null,2.9,null,3.3,null,null,3.1,null,null,null,null,1.9,null,2.6,null,5.0999999999999996,null,null,null,null,null,null,null,null,null,null,null,null,null,null,10,null,null,null,null,null,4,null,null,null,4,null,null,null,0.4,null,null,null,null,null,null,null,null,2.2999999999999998,null,null,null,null,null,null,6.5,null,null,null,null,null,null,null,7,null,null,null,null,5,null,11,null,null,null,2,null,null,4,null,null,4,4,2,null,null,null,null,null,null,null,10.5,null,null,null,null,null,4]
[null,"PCA",null,null,null,null,null,null,"Réu",null,null,null,"Simu","Réu","D","Réu",null,null,null,null,null,null,null,null,null,"M","Réu","Réu","Mep","ATO","S2","S2","S",null,"T",null,null,null,null,null,null,null,null,null,null,null,null,null,null,null,null,null,null,null,null,null,null,null,null,null,"Recurrent FAA F2000EAsy",null,null,null,null,null,null,null,"Simu",null,"D","D",null,null,"M","T","Réu","Réu","M",null,null,"D","D","D","M",null,null,null,"Saint Cloud",null,null,null,null,null,null,"Mep","Simu",null,"Réu","P","P","P","P",null,"Mep","Réu","ATO",null,null,"Simu","Réu",null,null,null,null,"Mep","Réu","Réu","Réu","Réu","Réu","Mep",null,"ATO","ATO","ATO",null,null,null,null,"D","D","M","ATO","ATO",null,null,"ATO","ATO",null,"ATO","ATO",null,"D",null,null,null,"Réu","Simu",null,null,"Mep","Réu","T",null,"Simu",null,"D","D","D","D","D","Mep",null,null,"Réu","ATO","P",null,"EI",null,"Mep","Réu","Réu","Mep","REU"]
[null,"E","C","E",null,null,null,null,null,null,null,null,"Réu","M",null,null,null,null,null,null,null,null,null,null,null,"Simu","Réu","Réu","Réu","M?",null,null,null,null,null,null,null,null,null,null,null,null,null,null,null,null,null,null,null,null,null,null,null,null,null,null,null,null,null,null,null,null,null,null,null,null,null,null,null,null,null,null,null,null,null,null,null,"M",null,null,"D",null,null,null,null,null,null,null,"Y","ATO",null,null,null,null,null,"M",null,null,"M",null,null,null,null,null,"Y",null,null,null,null,"ATO",null,null,null,null,null,null,null,null,null,null,null,null,null,null,null,null,null,null,null,null,null,null,null,null,"Réu",null,null,null,null,null,null,null,null,null,null,null,null,null,null,null,null,"Réu","Réu",null,null,null,null,null,null,null,null,"Mep",null,null,null,null,"Simu",null,null,null,null,null,null,"Mep","Réu?"]
[null,"E","E",null,null,null,null,null,null,null,null,null,null,"Mep",null,null,null,null,null,null,null,null,null,null,null,null,null,null,"Mep",null,null,null,null,null,null,null,null,null,null,null,null,null,null,null,null,null,null,null,null,null,null,null,null,null,null,null,null,null,null,null,null,null,null,null,null,null,null,null,null,null,null,null,null,null,null,null,null,null,null,null,null,null,null,null,null,null,null,null,"Mep",null,null,null,null,null,null,null,null,null,null,null,null,null,null,null,null,null,null,null,null,"Réu",null,null,null,null,null,null,null,null,null,null,null,null,null,null,null,null,null,null,null,null,null,null,null,null,null,null,null,null,null,null,null,null,null,null,null,null,null,null,null,null,null,"Mep"]
[null,{"$f":"SUM(G62:GE62)","v":149.9},null,{"$f":"'2015-1 '!B62","v":167.1},null,null,null,null,null,null,null,null,null,null,4.8,null,null,null,null,null,null,null,null,null,null,3.1,null,null,null,null,null,null,9.5,null,null,null,null,null,null,null,null,null,null,null,null,null,null,null,null,null,null,null,null,null,null,null,null,null,null,null,null,null,null,null,null,null,null,null,27,null,11.1,12.8,null,null,1.9,2.5,null,2.6,null,null,7.2,2,1.6,9.8000000000000007,1.9,null,null,null,1.1000000000000001,null,null,null,null,null,null,1.8,4,null,2.5,1,6.9,null,7.3,null,1,null,null,null,null,4,null,null,null,null,null,null,null,null,null,null,null,null,null,null,null,null,null,null,null,null,3.6,4.3,1.1000000000000001,null,null,null,null,null,null,null,null,null,null,null,null,null,null,null,4,null,null,null,null,2,null,null,null,null,null,null,null,null,null,null,null,null,4,2,null,null,null,null,null,null,null,1.5]
[null,"BSE",null,null,null,null,"X ou avion classique",null,null,null,null,null,null,null,null,null,null,null,null,null,"Simu",null,null,null,null,null,null,null,null,null,null,null,null,null,null,null,null,null,null,null,null,null,null,null,null,null,null,null,null,null,null,null,null,null,null,null,null,null,null,null,null,null,null,null,null,null,null,null,"Réu","Réu","Réu","Réu",null,null,"Simu",null,"Réu","Réu","D",null,null,"D",null,"D","D","D","D","D","D","D","D","CIBAS",null,"Mep",null,"Saint Cloud",null,null,null,null,null,"Mep","Mep","D","D","D","D","D","Mep","ATO","ATO",null,null,null,null,null,"SC","M",null,"M",null,null,null,"D","M?",null,null,null,null,null,null,"Med",null,"Y","Dubaï",null,null,null,null,null,null,"Y",null,null,null,null,"Simu",null,null,null,null,"Saint Cloud",null,null,null,null,null,null,"-","Réu","Mep","Mep","D","D","D","D","D","D",null,"ATO",null,null,"D","D","D","EI"]
[null,"E",null,null,null,null,null,null,null,null,null,null,null,null,null,null,null,null,null,null,null,null,null,null,null,null,null,null,null,null,null,null,null,null,null,null,null,null,null,null,null,null,null,null,null,null,null,null,null,null,null,null,null,null,null,null,null,null,null,null,null,null,null,null,null,null,null,null,null,null,"ATO",null,null,null,null,null,null,"M",null,null,null,null,null,null,null,null,null,null,null,null,null,null,null,null,null,null,"Simu",null,null,null,null,null,null,null,null,null,null,null,null,null,"ATO",null,null,null,null,null,null,null,null,null,null,null,null,null,null,null,null,null,null,null,null,null,null,null,null,null,null,null,null,null,null,null,null,null,null,null,null,null,null,null,null,null,null,null,null,"Simu"]
[null,"E","E"]
[null,{"$f":"SUM(G66:GE66)","v":83.2},null,{"$f":"SUM('[1]2015-1 '!B66:C66)","v":{"$error":"#REF!"}},null,null,null,null,null,null,null,null,null,null,null,null,null,null,null,null,null,null,null,null,null,null,null,null,null,null,null,null,null,null,null,null,null,null,null,null,null,null,null,null,null,null,null,null,null,null,null,null,null,null,null,null,null,null,null,null,null,null,null,null,null,null,null,null,null,null,null,null,null,null,4,null,null,2.6,2.2999999999999998,null,null,4.7,null,10.3,null,4.3,2.1,2.2999999999999998,null,null,4.8,null,null,null,null,null,4,null,null,null,null,null,null,2.1,null,3.7,3.9,4.4000000000000004,null,null,null,null,null,null,null,null,null,null,null,null,null,null,null,3.6,null,null,null,null,null,null,null,null,null,6.4,null,null,null,null,null,null,null,6.7,null,null,null,null,4,null,null,null,null,null,null,null,null,3,null,null,null,null,null,null,null,null,null,2,null,null,null,null,null,null,null,null,2]
[null,null,null,null,null,null,null,null,null,"113j",null,null,null,null,null,null,null,null,null,null,null,null,null,null,null,null,null,null,null,null,null,null,null,null,null,null,"105 j",null,null,null,null,null,null,null,null,null,null,null,null,null,null,null,null,"109 j",null,null,null,null,null,null,null,null,null,null,null,null,null,null,null,null,null,null,null,null,null,null,null,null,null,null,null,null,null,null,null,null,null,null,null,null,null,null,null,null,null,null,null,null,null,null,null,"100j"]
[]
[]
[null,{"$f":"SUM(G70:GE70)","v":0}]
[null,"DEV",null,null,null,null,null,null,null,null,null,null,"DEV","D","D","D","D",null,null,null,null,null,null,null,null,null,null,null,null,null,null,null,null,null,null,null,null,null,"DEV","D",null,null,null,null,null,"FLA","T","D","EGE","D","FLA","D","HLA","D","T/Y","DEV","D","D","D",null,null,null,null,"PRE","D","DEV","P","P","P","P",null,null,null,null,null,null,null,"FLA","D",null,null,"Simu","JLD","D","D","D","D","D","D","D","D","CIBAS",null,null,"Mep",null,null,null,null,"SDD","Mep","Mep","D","D","D","D","D","D","D","D","D","D","D","D","D",null,null,null,"HLA","Y?","Y?",null,"FLA","D",null,null,null,"FXG","D","JLD","D","D",null,null,null,null,null,null,null,null,null,null,null,null,null,null,null,null,null,null,null,null,null,null,null,null,null,null,null,null,null,null,null,null,null,"Simu"]
[null,null,null,null,null,null,null,null,null,null,null,null,null,null,null,null,null,null,null,null,null,null,null,null,null,null,null,null,null,null,null,null,null,null,null,null,null,null,null,"FXG","D","FXG","P","P",null,null,"DEV","D","DEV","M",null,null,null,null,null,null,null,null,null,null,null,null,null,null,null,null,"FLA","Y",null,null,null,null,null,null,null,null,null,null,null,"FVA","D","D","D","D",null,null,null,null,null,null,null,null,null,null,null,null,null,null,null,"FVA","D","D","D","D","D","D","D","D","D","D","D","D","EGE","P","FLA","P","P",null,null,null,null,null,null,null,null,null,null,null,null,null,null,null,"FLA","Y","Dubaï",null,null,null,null,null,null,"Y"]
[null,null,null,null,null,null,null,null,null,null,null,null,null,null,null,null,null,null,null,null,null,null,null,null,null,null,null,null,null,null,null,null,null,null,null,null,null,null,null,null,null,null,"BFE","D","D","D",null,null,null,null,null,null,null,null,null,null,null,null,null,null,null,null,null,null,null,null,null,"Mep",null,null,null,null,null,null,null,null,null,null,null,null,"PRE","D","M",null,null,null,null,null,null,null,null,"BFE","Mep","Mep","D","D","D","D","D","D","D","D","D","Mep",null,null,null,null,null,null,null,null,null,null,null,null,null,null,null,null,null,null,null,null,null,null,null,null,null,null,null,null,"FVA","Y","Dubaï",null,null,null,null,null,null,"Y"]
[null,{"$f":"SUM(G74:FP74)","v":0},null,null,null,null,null,null,null,null,null,null,null,null,null,null,null,null,null,null,null,null,null,null,null,null,null,null,null,null,null,null,null,null,null,null,null,null,null,null,null,null,null,null,null,null,null,null,null,null,null,null,null,null,null,null,null,null,null,null,null,null,null,null,null,null,null,null,null,null,null,null,null,null,null,null,null,null,null,null,null,null,"M",null,null,null,null,null,"DEV","D","D","PDU","D",null,null,"HLA","D","D","D",null,null,null,null,null,null,null,null,null,null,null,null,null,null,null,null,null,null,null,null,null,null,null,null,null,null,null,null,null,null,null,null,null,null,"CCA","P",null,null,"P","Simu"]
[null,"EXT",null,null,null,null,null,null,null,null,null,null,null,null,null,null,null,null,null,null,null,null,null,null,null,null,null,null,null,null,null,null,null,null,null,null,null,null,null,null,"PDV","D",null,null,null,null,null,null,null,null,null,null,null,null,null,"AAG","M",null,null,null,null,null,null,null,null,null,null,null,"TBO","Y",null,null,null,null,null,null,null,null,null,null,null,null,null,null,null,null,null,null,null,null,null,null,null,null,null,null,null,null,null,null,null,null,null,null,null,null,null,null,null,null,null,null,null,null,null,null,null,null,null,null,null,null,null,null,null,null,null,null,null,null,null,null,null,null,null,null,"CMA","Mep","D"]
[null,null,null,null,null,null,null,null,null,null,null,null,null,null,null,null,null,null,null,null,null,null,null,null,null,null,null,null,null,null,null,null,null,null,null,null,null,null,null,null,"CMA","Mep","Y","Y",null,null,null,null,null,null,null,null,null,null,"EXT","Y"]
[null,null,null,null,null,null,null,null,null,null,null,null,null,null,null,null,null,null,null,null,null,null,null,null,null,null,null,null,null,null,null,null,null,null,null,null,null,null,null,null,null,null,null,"Mep"]
[null,{"$f":"SUM(G78:FP78)","v":0}]
[null,null,null,null,null,null,1,2,3,4,5,6,7,8,9,10,11,12,13,14,15,16,17,18,19,20,21,22,23,24,25,26,27,28,29,30,31,1,2,3,4,5,6,7,8,9,10,11,12,13,14,15,16,17,18,19,20,21,22,23,24,25,26,27,28,29,30,31,1,2,3,4,5,6,7,8,9,10,11,12,13,14,15,16,17,18,19,20,21,22,23,24,25,26,27,28,29,30,1,2,3,4,5,6,7,8,9,10,11,12,13,14,15,16,17,18,19,20,21,22,23,24,25,26,27,28,29,30,31,1,2,3,4,5,6,7,8,9,10,11,12,13,14,15,16,17,18,19,20,21,22,23,24,25,26,27,28,29,30,1,2,3,4,5,6,7,8,9,10,11,12,13,14,15,16,17,18,19,20,21,22,23,24,25,26,27,28,29,30,31]
[null,"CPA",null,null,null,null,null,"Mep","D","D","D","P",null,"D",null,null,null,null,null,null,null,null,null,null,null,null,null,null,null,null,null,null,null,null,null,null,null,null,null,null,null,null,null,null,null,null,null,"D",null,null,null,null,"D",null,null,null,"D","D","D",null,null,"D","D",null,null,null,null,null,"D","D","D","D",null,null,null,null,"D","Jet Expo",null,"D","D","D","D","D",null,null,null,null,null,null,null,null,null,null,null,null,null,null,null,"P","P","P","P",null,null,"D",null,null,null,null,"F","F","F",null,null,null,null,null,null,null,null,null,null,null,null,null,null,null,null,null,null,null,"Reu","Y","Dubaï",null,null,null,null,null,null,"Y","P",null,null,"NBAA",null,null,"P",null,null,null,null,null,"Reu",null,null,null,null,null,null,null,"Reu",null,null,null,null,null,null,null,null,null,null,null,null,null,null,null,null,null,null,null,null,null,null,null,null,null,null,null,"25 au 31 Janvier 2015"]
[null,"7x","9z","2z","5x","8x",null,null,null,null,null,null,null,null,null,null,null,null,null,null,null,null,null,null,null,null,null,null,null,null,null,null,null,null,null,null,null,null,null,null,null,null,null,null,null,null,null,null,null,null,null,null,null,null,null,null,null,null,null,null,null,null,null,null,null,null,null,null,null,null,null,null,null,null,null,null,null,null,null,null,null,null,null,null,null,null,null,null,null,null,null,null,null,null,null,null,null,null,null,null,null,null,null,null,null,null,null,null,null,null,null,null,"Réu",null,null,null,null,null,null,null,null,null,null,null,null,null,null,null,null,null,null,null,null,null,null,null,null,null,null,null,null,null,null,null,null,null,"P","P"]
[null,50,"9c","2c"]
[null,{"$f":"SUM('2015-1 '!G79:GE79)+SUM(G83:GH83)","v":237.1},null,null,null,null,null,null,null,9.1,1.2,1.9,null,2.8,null,null,null,null,null,null,null,null,null,null,null,null,null,null,null,null,null,null,null,null,null,null,null,null,null,null,null,null,null,null,null,null,null,4.7,null,null,null,null,4.5,null,null,null,4.5,null,5.5,null,null,1.8,2.5,null,null,null,null,null,null,5.8,11.1,12.8,null,null,null,null,3.3,null,null,3.1,7.2,2,1.6,9.8000000000000007,null,null,null,null,null,null,null,null,null,null,null,null,null,null,null,1,6.9,null,7.3,null,null,2.4,null,null,null,null,2,null,2.2999999999999998]
[null,"CMO",null,null,null,null,null,null,null,null,null,null,null,null,null,null,null,null,"D","D","D","D",null,null,"D","P",null,null,null,null,null,null,null,null,null,null,null,null,null,"D","D",null,"P","P",null,null,null,null,null,null,null,null,null,null,null,null,null,null,null,null,null,null,null,null,null,null,null,null,null,null,null,null,null,null,null,null,null,null,"D",null,null,"D",null,null,null,null,"M",null,null,"D","D","P",null,null,null,null,null,null,null,null,null,null,null,null,null,null,null,null,null,null,null,null,null,"P",null,"P","P",null,null,null,null,null,null,null,null,null,null,null,"D",null,"D","D","Reu",null,null,"D","D","D","D",null,"Reu",null,null,null,null,null,null,null,null,null,"D","D","D","D","D","D",null,null,null,null,null,null,null,null,null,null,null,null,null,null,null,null,null,null,null,null,null,null,null,null,null,null,null,null,null,null,null,null,null,null,"1er au 03 Janvier"]
[null,"7x","9z","2z","5x","8x"]
[null,50,"9c","2c"]
[null,{"$f":"SUM('2015-1 '!G83:GE83)+SUM(G87:GH87)","v":199.2},null,null,null,null,null,null,null,null,null,null,null,null,null,null,null,null,9.3000000000000007,null,11.8,null,null,null,2,2.2999999999999998,null,null,null,null,null,null,null,null,null,null,null,null,null,7.7,5.3,null,9,1,null,null,null,null,null,null,null,null,null,null,null,null,null,null,null,null,null,null,null,null,null,null,null,null,null,null,null,null,null,null,null,null,null,null,2.2999999999999998,null,null,4.4000000000000004,null,null,null,null,2.6,null,null,2.9,4.4000000000000004,2,null,null,null,null,null,null,null,null,null,null,null,null,null,null,null,null,null,null,null,null,null,2,null,6.1,6.9,null,null,null,null,null,null,null,null,null,null,null,3.8,null,6.8,6.6]
[null,"MFR",null,null,null,null,null,null,null,null,null,null,null,"D","D","D","D",null,"Mep",null,null,null,"D",null,null,"P",null,null,null,null,null,null,null,null,null,null,null,null,null,null,null,null,null,null,null,null,null,null,null,null,null,null,null,null,null,null,null,null,null,null,null,null,null,null,"D",null,null,"D",null,null,null,null,null,null,null,null,"D","Jet Expo",null,"D",null,null,null,"D","D","D","D","D","D","D","D","CIBAS",null,null,"Mep",null,null,null,null,null,null,null,null,null,null,null,null,null,null,null,"F","F","F",null,null,null,null,null,null,null,null,null,null,"D",null,null,null,null,null,null,null,null,null,"Y","Dubaï",null,null,null,null,null,null,"Y",null,"D",null,null,"D",null,null,null,null,null,"P","D","Reu"]
[null,"7x","9z","2z","5x","8x",null,null,null,null,null,null,null,null,null,null,null,null,"D",null,null,null,null,null,null,null,null,null,null,null,null,null,null,null,null,null,null,null,null,null,null,null,null,null,null,null,null,null,null,null,null,null,null,null,null,null,null,null,null,null,null,null,null,null,null,null,null,null,null,null,null,null,null,null,null,null,null,null,null,null,null,null,null,null,null,null,null,null,null,null,null,null,null,null,null,null,null,null,null,null,null,null,null,null,null,null,null,null,null,null,null,null,"Réu",null,null,null,null,null,null,null,null,null,null,null,null,null,null,null,null,null,null,null,"Reu",null,null,null,null,null,null,null,null,null,null,null,null,null,null,null,null,null,null,null,null,null,"D",null,null,null,null,null,null,null,"Reu"]
[null,50,"9c","2c"]
[null,{"$f":"SUM('2015-1 '!G87:GE87)+SUM(G91:GH91)","v":185.69999999999996},null,null,null,null,null,null,null,null,null,null,null,null,null,null,null,null,0.8,null,null,null,3.1,null,null,3.3,null,null,null,null,null,null,null,null,null,null,null,null,null,null,null,null,null,null,null,null,null,null,null,null,null,null,null,null,null,null,null,null,null,null,null,null,null,null,4,null,null,7.8,null,null,null,null,null,null,null,null,3.3,null,null,3.1,null,null,null,10.3,null,4.3,2.1,2.2999999999999998,null,null,4.8,null,null,null,null,null,null,null,null,null,null,null,null,null,null,null,null,null,null,null,2,null,2.2999999999999998,null,null,null,null,null,null,null,null,null,null,3.6]
[null,"EXT",null,null,null,null,null,null,null,null,"ALA","D",null,"NPA","D","ALA","D",null,null,null,null,null,null,null,null,null,null,null,null,null,null,null,null,null,null,null,null,null,null,null,"KGI","D","KGI","D","D","D","EXT","D","EXT","D",null,null,null,null,null,null,null,null,null,null,null,null,null,null,null,null,null,"CBE","D","D","CBE","D","D",null,null,null,null,null,null,null,"LLA","D",null,null,null,null,null,null,null,null,null,"CBE","D","RITA","D","D","D","D","D","D","D","D","D","D","D","D","D","D","D","D","D","D","D","D","D",null,null,null,null,null,null,null,null,null,null,null,null,null,null,"LLA","D","D",null,"KGI","P",null,null,"P","KGI","D","D",null,null,null,null,null,null,null,null,null,null,null,null,"KGI","D"]
[null,null,null,null,null,null,null,null,null,null,null,null,null,null,null,null,"Mep",null,null,null,null,null,null,null,null,null,null,null,null,null,null,null,null,null,null,null,null,null,null,null,null,null,null,null,null,null,null,null,null,null,null,null,null,null,null,null,null,null,null,null,null,null,null,null,null,"ALA","P","P","P","P","NNE","D",null,null,null,null,null,null,null,null,null,null,null,null,null,null,null,null,null,null,null,null,null,"ALA","D","D",null,null,null,"ALA","D","D","D","D","D","D","D","D","D","D","D","D",null,null,null,null,null,null,null,null,null,null,null,null,null,null,null,null,null,null,null,null,null,null,null,null,"NPA","Mep","D",null,null,null,null,null,null,null,null,null,null,null,null,null,null,"ALA","D","D"]
[null,null,null,null,null,null,null,null,null,null,null,null,null,null,null,null,null,null,null,null,null,null,null,null,null,null,null,null,null,null,null,null,null,null,null,null,null,null,null,null,null,null,null,null,null,null,null,null,null,null,null,null,null,null,null,null,null,null,null,null,null,null,null,null,null,null,null,null,null,null,null,null,null,null,null,null,null,null,null,null,null,null,null,null,null,null,null,null,null,null,null,null,null,null,null,null,null,null,null,null,null,null,null,null,null,null,null,null,null,null,null,null,null,null,null,null,null,null,null,null,null,null,null,null,null,null,null,null,null,null,null,null,null,null,null,null,null,null,null,null,null,null,null,null,null,null,null,null,null,"CBE","D","D","D","D","D"]
[null,{"$f":"SUM(G95:FP95)","v":0}]

{"sheet":"Légende","index":2,"n_rows":88,"n_cols":22,"rows_kept":88,"cut":false,"hidden":false,"merged":[[1,1,1,4],[1,6,1,9],[1,11,1,15]]}
[]
[null,"AVIONS",null,null,null,null,"PILOTES",null,null,null,null,"ACTIVITES"]
[null,null,null,"Falcon 900 Easy",null,null,null,null,"First Officer",null,null,"D",null,"Vol de démo"]
[null,null,null,"Falcon 2000 Easy",null,null,"C",null,"Captain",null,null,"C",null,"Vol contractuel"]
[null,null,null,"Falcon 7X",null,null,"I",null,"TRI",null,null,"S",null,"Vol de support"]
[null,null,null,"Falcon 8X",null,null,"E",null,"TRE",null,null,"T",null,"Vol de training"]
[null,null,null,"Falcon 900B & 900ex",null,null,null,null,"Qualif expirée",null,null,"M",null,"Vol de maintenance"]
[null,null,null,"Falcon 2000",null,null,null,null,null,null,null,"F",null,"Factory tour"]
[null,null,null,"Falcon 50",null,null,null,null,null,null,null,"X",null,"Avion en statique"]
[null,null,null,"Falcon 20",null,null,null,null,null,null,null,"Y",null,"Convoyage"]
[null,null,null,"Falcon 5X",null,null,null,null,null,null,null,"P",null,"Présidence Dassault Aviation"]
[null,null,null,null,null,null,null,null,null,null,null,"L",null,"Livraison"]
[null,null,null,null,null,null,null,null,null,null,null,"MA",null,"Meeting aérien"]
[null,null,null,null,null,null,null,null,null,null,null,"DFS",null,"Pilote loué à DFS"]
[null,null,null,null,null,null,null,null,null,null,null,"Mep",null,"Mise en place"]
[null,null,null,null,null,null,null,null,null,null,null,"Simu",null,"Simulateur"]
[null,null,null,null,null,null,null,null,null,null,null,"Mal",null,"Maladie"]
[null,null,null,null,null,null,null,null,null,null,null,"Med",null,"Visite médicale"]
[null,null,null,null,null,null,null,null,null,null,null,"For",null,"Formation / Cours au sol"]
[null,null,null,null,null,null,null,null,null,null,null,"Réu",null,"Réunion"]
[null,null,null,null,null,null,null,null,null,null,null,"St Cd",null,"Réunion à St Cloud"]
[null,null,null,null,null,null,null,null,null,null,null,"Lbg",null,"Réunion au Bourget"]
[null,null,null,null,null,null,null,null,null,null,null,"Ist",null,"Réunion à Istres"]
[null,null,null,null,null,null,null,null,null,null,null,null,null,"Repos / Vacances"]
[null,null,null,null,null,null,null,null,null,null,null,null,null,"Récup"]
[null,null,null,null,null,null,null,null,null,null,null,"PL",null,"Gestion Plannig"]
[null,null,null,null,null,null,null,null,null,null,null,null,null,"Travail au sol"]
[]
[]
[]
[]
[]
[]
[]
[]
[]
[]
[]
[]
[]
[]
[]
[]
[]
[]
[]
[]
[]
[]
[]
[]
[]
[]
[]
[]
[]
[]
[null,null,null,null,"janvier",null,null,null,1,null,null,2014,null,null,"PMI"]
[null,null,null,null,"fevrier",null,null,null,2,null,null,2015,null,null,"PGU"]
[null,null,null,null,"mars",null,null,null,3,null,null,2016,null,null,"DBR"]
[null,null,null,null,"avril",null,null,null,4,null,null,2017,null,null,"OFR",null,null,1,null,5,6,1]
[null,null,null,null,"mai",null,null,null,5,null,null,2018,null,null,"JPL"]
[null,null,null,null,"juin",null,null,null,6,null,null,2019,null,null,"OPE",null,null,{"$f":"INDEX(D3:D10,R61)","v":"Falcon 900 Easy"},null,{"$f":"INDEX(I58:I88,T61)","v":5},{"$f":"INDEX(E58:E69,U61)","v":"juin"},{"$f":"INDEX(L58:L69,V61)","v":2014}]
[null,null,null,null,"juillet",null,null,null,7,null,null,2020,null,null,"MDU"]
[null,null,null,null,"aout",null,null,null,8,null,null,2021,null,null,"PCA"]
[null,null,null,null,"septembre",null,null,null,9,null,null,2022,null,null,"DEV"]
[null,null,null,null,"octobre",null,null,null,10,null,null,2023,null,null,"EXT",null,null,null,null,8,7,7]
[null,null,null,null,"novembre",null,null,null,11,null,null,2024,null,null,"CPA"]
[null,null,null,null,"decembre",null,null,null,12,null,null,2025,null,null,"CMO",null,null,null,null,{"$f":"INDEX(I58:I88,T67)","v":8},{"$f":"INDEX(E58:E69,U67)","v":"juillet"},{"$f":"INDEX(L58:L69,V67)","v":2020}]
[null,null,null,null,null,null,null,null,13,null,null,null,null,null,"MFR"]
[null,null,null,null,null,null,null,null,14]
[null,null,null,null,null,null,null,null,15]
[null,null,null,null,null,null,null,null,16,null,null,null,null,null,null,null,null,null,null,4]
[null,null,null,null,null,null,null,null,17,null,null,null,null,null,null,null,null,null,null,{"$f":"INDEX(O58:O88,T73)","v":"OFR"}]
[null,null,null,null,null,null,null,null,18]
[null,null,null,null,null,null,null,null,19]
[null,null,null,null,null,null,null,null,20]
[null,null,null,null,null,null,null,null,21]
[null,null,null,null,null,null,null,null,22]
[null,null,null,null,null,null,null,null,23]
[null,null,null,null,null,null,null,null,24]
[null,null,null,null,null,null,null,null,25]
[null,null,null,null,null,null,null,null,26]
[null,null,null,null,null,null,null,null,27]
[null,null,null,null,null,null,null,null,28]
[null,null,null,null,null,null,null,null,29]
[null,null,null,null,null,null,null,null,30]
[null,null,null,null,null,null,null,null,31]

{"sheet":"stat","index":3,"n_rows":126,"n_cols":113,"rows_kept":126,"cut":false,"hidden":false,"merged":[[9,56,9,66],[117,1,117,11],[9,102,9,112],[40,102,40,112],[9,100,9,101],[40,100,40,101],[9,89,9,99],[9,78,9,88],[9,67,9,77],[40,89,40,99],[40,78,40,88],[9,0,12,2],[40,23,40,33],[10,8,18,9],[40,67,40,77],[40,56,40,66],[40,45,40,55],[42,8,50,9],[9,23,9,33],[9,34,9,44],[40,12,40,22],[9,45,9,55],[9,12,9,22],[123,1,123,11],[66,1,66,9],[88,1,88,9],[41,0,44,2],[40,34,40,44]]}
["D","Dfs"]
["PMIGPO","2015-06-30"]
[]
[]
[]
[]
[]
[]
[]
["bouton de mise à jour du nombre de jour d'immobilisation par avion",null,null,null,null,null,null,null,null,null,null,null,"falcon 7X",null,null,null,null,null,null,null,null,null,null,"falcon 900 easy",null,null,null,null,null,null,null,null,null,null,"Falcon 2000 Easy",null,null,null,null,null,null,null,null,null,null,"Falcon 8X",null,null,null,null,null,null,null,null,null,null,"Falcon 900B",null,null,null,null,null,null,null,null,null,null,"Falcon 2000",null,null,null,null,null,null,null,null,null,null,"Falcon 50",null,null,null,null,null,null,null,null,null,null,"Falcon 20",null,null,null,null,null,null,null,null,null,null,"ATO",null,"Falcon 5X"]
[null,null,null,null,null,null,null,null,"tableau de suivi des jours par type d'avion avion",null,null,null,"D","C","S","T","M","F","X","Y","P","L","Dfs","D","C","S","T","M","F","X","Y","P","L","Dfs","D","C","S","T","M","F","X","Y","P","L","Dfs","D","C","S","T","M","F","X","Y","P","L","Dfs","D","C","S","T","M","F","X","Y","P","L","Dfs","D","C","S","T","M","F","X","Y","P","L","Dfs","D","C","S","T","M","F","X","Y","P","L","Dfs","D","C","S","T","M","F","X","Y","P","L","Dfs","ATO","VHL","D","C","S","T","M","F","X","Y","P","L","Dfs"]
[null,null,null,null,null,null,null,null,null,null,null,"PMI",0,0,0,7,1,2,0,0,0,0,0,3,0,2,1,0,1,0,0,2,0,0,5,0,0,1,4,0,0,4,0,0,0,0,0,0,18,0,0,0,0,0,0,0,0,0,0,0,0,0,0,3,0,0,0,0,0,0,2,0,0,0,0,0,0,0,0,0,0,0,2,0,0,0,0,0,0,0,0,0,0,0,0,0,0,0,0,0,5,0,0,0,0,0,0,0,0,0,0,0,0]
[null,null,null,null,null,null,null,null,null,null,null,"PGU",4,0,0,0,1,0,2,0,0,0,0,0,0,0,1,0,0,0,0,0,0,0,0,0,2,2,1,0,0,0,0,0,0,0,0,0,18,0,0,0,0,0,0,0,0,0,0,0,1,0,0,0,0,0,0,0,0,0,0,0,0,0,0,0,0,0,0,0,0,0,0,0,0,0,0,0,0,0,0,0,0,0,0,0,0,0,0,0,9,0,0,0,0,0,0,0,0,0,0,0,0]
[null,null,null,null,null,null,null,null,null,null,null,"DBR",1,0,0,2,3,0,0,1,0,0,0,0,0,8,3,1,3,0,2,3,0,0,0,0,5,2,1,0,0,2,0,0,0,0,0,0,18,0,0,0,0,0,0,0,1,0,0,0,1,0,0,2,0,0,0,0,0,0,0,0,0,0,0,0,0,0,0,0,0,2,0,0,0,0,0,0,0,0,0,0,0,0,0,0,0,0,0,0,15,0,0,0,0,0,0,0,0,0,0,0,0]
[null,null,null,null,null,null,null,null,null,null,null,"OFR",6,0,0,5,0,0,0,2,1,0,0,9,0,10,0,0,0,0,0,0,0,0,2,0,10,1,2,0,0,1,0,0,0,0,0,0,18,0,0,0,0,0,0,0,0,0,0,0,0,0,0,0,0,0,0,0,0,0,0,0,0,0,0,0,0,0,0,0,0,0,0,0,0,0,0,0,0,0,0,0,0,0,0,0,0,0,0,0,11,0,0,0,0,0,0,0,0,0,0,0,0]
[null,null,null,null,null,null,null,null,null,null,null,"JPL",3,0,3,4,1,0,0,1,3,0,0,3,0,4,2,2,0,0,0,2,0,0,5,0,4,0,0,0,0,3,2,0,0,0,0,0,18,0,0,0,0,0,0,0,0,0,0,0,0,0,0,0,0,0,0,0,0,0,0,0,0,0,0,0,0,0,0,0,0,0,0,0,0,0,0,0,0,0,0,0,0,0,0,0,0,0,0,0,2,0,0,0,0,0,0,0,0,0,0,0,0]
[null,null,null,null,null,null,null,null,null,null,null,"OPE",2,0,0,3,3,0,0,3,0,0,0,2,0,3,0,1,0,0,1,6,0,0,5,0,24,1,0,0,0,3,0,0,0,0,0,0,18,0,0,0,0,0,0,0,0,0,0,0,0,0,0,0,0,0,0,0,0,0,0,0,0,0,0,0,0,0,0,0,0,0,0,0,0,0,0,0,0,0,0,0,0,0,0,0,0,0,0,0,3,0,0,0,0,0,0,0,0,0,0,0,0]
[null,null,null,null,null,null,null,null,null,null,null,"MDU",5,0,0,0,1,0,0,4,0,0,0,0,0,6,2,1,0,0,0,0,0,0,2,0,5,3,0,0,0,1,1,0,0,0,0,0,18,0,0,0,0,0,0,0,0,0,0,0,2,0,0,0,0,0,0,0,0,0,3,0,0,0,0,0,0,0,0,0,0,1,1,0,0,0,0,0,0,0,0,0,0,0,0,0,0,0,0,0,8,0,0,0,0,0,0,0,0,0,0,0,0]
[null,null,null,null,null,null,null,null,null,null,null,"PCA",4,0,0,7,0,0,0,1,1,0,0,0,0,0,0,1,0,0,1,1,0,0,7,0,5,4,4,0,0,3,0,0,0,0,0,0,18,0,0,0,0,0,0,0,0,0,0,0,1,0,0,2,0,0,0,0,0,0,0,0,0,0,0,0,0,0,0,0,0,3,2,0,0,0,0,0,0,0,0,0,0,0,0,0,0,0,0,0,7,0,0,0,0,0,0,0,0,0,0,0,0]
[null,null,null,null,null,null,null,null,null,null,null,"BSE",0,0,0,0,0,0,0,0,0,0,0,0,0,0,0,0,0,0,0,0,0,0,0,0,0,0,0,0,0,0,0,0,0,0,0,0,18,0,0,0,0,0,0,0,0,0,0,0,0,0,0,0,0,0,0,0,0,0,0,0,0,0,0,0,0,0,0,0,0,0,0,0,0,0,0,0,0,0,0,0,0,0,0,0,0,0,0,0,0,0,0,0,0,0,0,0,0,0,0,0,0]
[]
[]
[]
[]
[]
[]
[]
[]
[]
[]
[]
[]
[]
[null,null,null,null,null,null,null,null,null,null,null,"Totaux ",{"$f":"SUM(M12:M19)","v":25},{"$f":"SUM(N12:N19)","v":0},{"$f":"SUM(O12:O19)","v":3},28,10,2,2,12,5,0,0,17,0,33,9,6,4,0,4,14,0,0,26,0,55,14,12,0,0,17,3,0,0,0,0,0,144,0,0,0,0,0,0,0,1,0,0,0,5,0,0,7,0,0,0,0,0,0,5,0,0,0,0,0,0,0,{"$f":"SUM(CA12:CA19)","v":0},0,0,6,5,0,0,0,0,0,0,0,0,0,0,0,0,0,0,0,0,0,60,0,0,0,0,0,0,0,0,0,0,0,0]
[null,null,null,null,null,null,null,null,null,null,null,{"$f":"W35+AH35+AS35+BD35+BO35+BZ35+CK35+CV35+DI35","v":474},null,null,null,null,null,null,null,null,null,null,{"$f":"M34+N34++O34+P34+Q34+R34+S34+T34+U34+V34+W34","v":87},null,null,null,null,null,null,null,null,null,null,{"$f":"X34+Y34++Z34+AA34+AB34+AC34+AD34+AE34+AF34+AG34+AH34","v":87},null,null,null,null,null,null,null,null,null,null,{"$f":"AI34+AJ34++AK34+AL34+AM34+AN34+AO34+AP34+AQ34+AR34+AS34","v":127},null,null,null,null,null,null,null,null,null,null,{"$f":"AT34+AU34++AV34+AW34+AX34+AY34+AZ34+BA34+BB34+BC34+BD34","v":144},null,null,null,null,null,null,null,null,null,null,{"$f":"BE34+BF34++BG34+BH34+BI34+BJ34+BK34+BL34+BM34+BN34+BO34","v":13},null,null,null,null,null,null,null,null,null,null,{"$f":"BP34+BQ34++BR34+BS34+BT34+BU34+BV34+BW34+BX34+BY34+BZ34","v":5},null,null,null,null,null,null,null,null,null,null,{"$f":"CA34+CB34++CC34+CD34+CE34+CF34+CG34+CH34+CI34+CJ34+CK34","v":11},null,null,null,null,null,null,null,null,null,null,{"$f":"CL34+CM34++CN34+CO34+CP34+CQ34+CR34+CS34+CT34+CU34+CV34","v":0},null,null,null,null,null,null,null,null,null,null,null,null,{"$f":"CY34+CZ34++DA34+DB34+DC34+DD34+DE34+DF34+DG34+DH34+DI34","v":0}]
[null,null,null,null,null,null,null,null,null,null,null,null,null,null,null,null,null,null,null,null,null,null,null,null,null,null,null,null,null,null,2,null,"Ré","ato"]
[null,null,null,null,null,null,null,null,null,null,null,null,null,null,null,null,null,null,null,null,null,null,null,null,null,null,null,null,null,null,"7x","9z","2z","5x"]
[null,null,null,null,null,null,null,null,null,null,null,null,null,null,null,null,null,null,null,null,null,null,null,null,null,null,null,null,null,null,50,"9c","2c","8x"]
[]
[]
[null,null,null,null,null,null,null,null,null,null,null,null,"falcon 7X",null,null,null,null,null,null,null,null,null,null,"falcon 900 easy",null,null,null,null,null,null,null,null,null,null,"Falcon 2000 Easy",null,null,null,null,null,null,null,null,null,null,"Falcon 8X",null,null,null,null,null,null,null,null,null,null,"Falcon 900B & 900 ex",null,null,null,null,null,null,null,null,null,null,"Falcon 2000",null,null,null,null,null,null,null,null,null,null,"Falcon 50",null,null,null,null,null,null,null,null,null,null,"Falcon 20",null,null,null,null,null,null,null,null,null,null,"ATO",null,"Falcon 5X"]
["bouton de mise à jour du nombre d'heure de pilotage par avion",null,null,null,null,null,null,null,null,null,null,null,"D","C","S","T","M","F","X","Y","P","L","Dfs","D","C","S","T","M","F","X","Y","P","L","Dfs","D","C","S","T","M","F","X","Y","P","L","Dfs","D","C","S","T","M","F","X","Y","P","L","Dfs","D","C","S","T","M","F","X","Y","P","L","Dfs","D","C","S","T","M","F","X","Y","P","L","Dfs","D","C","S","T","M","F","X","Y","P","L","Dfs","D","C","S","T","M","F","X","Y","P","L","Dfs","ATO","VHL","D","C","S","T","M","F","X","Y","P","L","Dfs"]
[null,null,null,null,null,null,null,null,"tableau de suivi des heures de vol par Type d'avion",null,null,"PMI",2.8,0,0,19.5,0,2.5,0,0,0,0,0,3.9,0,14.4,2,0,2.2000000000000002,0,0,13.8,0,0,12.399999999999999,0,0,1.4,6,0,0,8.1999999999999993,0,0,0,0,0,0,0,0,0,0,0,0,0,0,0,0,0,0,0,0,0,2.8,0,0,0,0,0,0,4.3,0,0,0,0,0,0,0,0,0,0,0,2.8,0,0,0,0,0,0,0,0,0,0,0,0,0,0,0,0,0,0,0,0,0,0,0,0,0,0,0,0,0,0]
[null,null,null,null,null,null,null,null,null,null,null,"PGU",19.7,0,0,0,3.3,0,0,0,0,0,0,0,0,0,4,2.2999999999999998,0,0,0,0,0,0,0,0,5,4.5,1.4,0,0,0,0,0,0,0,0,0,0,0,0,0,0,0,0,0,0,0,0,0,1.6,0,0,0,0,0,0,0,0,0,0,0,0,0,0,0,0,0,0,0,0,0,0,0,0,0,0,0,0,0,0,0,0,0,0,0,0,0,0,0,24,0,0,0,0,0,0,0,0,0,0,0,0]
[null,null,null,null,null,null,null,null,null,null,null,"DBR",2,0,0,4.5999999999999996,2.7,0,0,10.5,0,0,0,0,0,23.5,7.4,2.1,4.5,0,2,12.6,0,0,0,0,11.7,2.4,1.4,0,0,1.9,0,0,0,0,0,0,0,0,0,0,0,0,0,0,3,0,0,0,3.5,0,0,2.9,0,0,0,0,0,0,0,0,0,0,0,0,0,0,0,0,0,4.0999999999999996,0,0,0,0,0,0,0,0,0,0,0,0,0,0,0,0,0,0,25.9,0,0,0,0,0,0,0,0,0,0,0,0]
[null,null,null,null,null,null,null,null,null,null,null,"OFR",26.299999999999997,0,0,23,0,0,0,10.9,12.3,0,0,38.799999999999997,0,41.599999999999994,0,0,0,0,0,0,0,0,8.1999999999999993,0,49.5,2,3.7,0,0,12.7,0,0,0,0,0,0,0,0,0,0,0,0,0,0,0,0,0,0,0,0,0,0,0,0,0,0,0,0,0,0,0,0,0,0,0,0,0,0,0,0,0,0,0,0,0,0,0,0,0,0,0,0,0,0,0,0,0,0,24,0,0,0,0,0,0,0,0,0,0,0,0]
[null,null,null,null,null,null,null,null,null,null,null,"JPL",13.8,0,15.599999999999998,20,0.9,0,0,0.9,28.2,0,2.1,3.9,0,16.8,3.3,4.8,0,0,0,2.5,0,0,13.600000000000001,0,18.400000000000002,0,0,0,0,10.7,12.5,0,0,0,0,0,0,0,0,0,0,0,0,0,0,0,0,0,0,0,0,0,0,0,0,0,0,0,0,0,0,0,0,0,0,0,0,0,0,0,0,0,0,0,0,0,0,0,0,0,0,0,0,0,0,0,0,0,1.8,0,0,0,0,0,0,0,0,0,0,0,0]
[null,null,null,null,null,null,null,null,null,null,null,"OPE",16.399999999999999,0,0,13.2,4,0,0,3.8,3.3,0,0,5.8,0,6.2,0,4.9000000000000004,0,0,1,27.299999999999997,0,0,10,0,61.3,1.2,0,0,0,12.600000000000001,0,0,0,0,0,0,0,0,0,0,0,0,0,0,0,0,0,0,0,0,0,0,0,0,0,0,0,0,0,0,0,0,0,0,0,0,0,0,0,0,0,0,0,0,0,0,0,0,0,0,0,0,0,0,0,0,0,0,5.7,0,0,0,0,0,0,0,0,0,0,0,0]
[null,null,null,null,null,null,null,null,null,null,null,"MDU",44.6,0,0,0,1.2,0,0,20.399999999999999,0,0,0,2,0,14.499999999999998,6,2.1,0,0,0,0,0,0,3.1999999999999997,0,12.3,4.3,0,0,0,10.9,3.9,0,0,0,0,0,0,0,0,0,0,0,0,0,0,0,0,0,2.6,0,0,0,0,0,0,0,0,0,1,0,0,0,0,0,0,0,0,0,0,1.9,1.5,0,0,0,0,0,0,0,0,0,0,0,0,0,0,0,0,0,15.4,0,0,0,0,0,0,0,0,0,0,0,0]
[null,null,null,null,null,null,null,null,null,null,null,"PCA",20.399999999999999,0,0,22.4,0,0,0,1,3.1,0,0,0,0,9.5,0,1.3,0,0,1,2,0,0,27.6,0,20.700000000000003,9.2000000000000011,6.5,0,0,10.600000000000001,0,0,0,0,0,0,0,0,0,0,0,0,0,0,0,0,0,0,3.5,0,0,1.7000000000000002,0,0,0,0,0,0,0,0,0,0,0,0,0,0,0,0,0,5.9,2.6,0,0,0,0,0,0,0,0,0,0,0,0,0,0,0,0,0,3.6,0,0,0,0,0,0,0,0,0,0,0,0]
[null,null,null,null,null,null,null,null,null,null,null,"BSE",0,0,0,0,0,0,0,0,0,0,0,0,0,0,0,0,0,0,0,0,0,0,0,0,0,0,0,0,0,0,0,0,0,0,0,0,0,0,0,0,0,0,0,0,0,0,0,0,0,0,0,0,0,0,0,0,0,0,0,0,0,0,0,0,0,0,0,0,0,0,0,0,0,0,0,0,0,0,0,0,0,0,0,0,0,0,0,0,0,0,0,0,0,0,0,0,0,0,0,0,0]
[]
[]
[]
[]
[]
[3,12,"DFS"]
[3,12]
[]
[]
[]
[]
[]
[null,null,null,null,null,null,null,null,null,null,null,null,"D","C","S","T","M","F","X","Y","P","L","Dfs","D","C","S","T","M","F","X","Y","P","L","Dfs","D","C","S","T","M","F","X","Y","P","L","Dfs","D","C","S","T","M","F","X","Y","P","L","Dfs","D","C","S","T","M","F","X","Y","P","L","Dfs","D","C","S","T","M","F","X","Y","P","L","Dfs","D","C","S","T","M","F","X","Y","P","L","Dfs","D","C","S","T","M","F","X","Y","P","L","Dfs","ATO","VHL","D","C","S","T","M","F","X","Y","P","L","Dfs"]
[null,null,null,null,null,null,null,null,null,null,null,"Totaux",{"$f":"SUM(M43:M50)","v":146},{"$f":"SUM(N43:N50)","v":0},{"$f":"SUM(O43:O50)","v":15.599999999999998},102.69999999999999,12.1,2.5,0,47.5,46.9,0,2.1,54.399999999999991,0,126.5,22.7,17.5,6.7,0,4,58.199999999999996,0,0,75,0,178.90000000000003,25,19,0,0,67.599999999999994,16.399999999999999,0,0,0,0,0,0,0,0,0,0,0,0,0,3,0,0,0,11.2,0,0,7.3999999999999995,0,0,0,0,0,0,5.3,0,0,0,0,0,0,0,{"$f":"SUM(CA43:CA50)","v":0},0,0,11.9,6.9,0,0,0,0,0,0,0,0,0,0,0,0,0,0,0,0,0,100.4,0,0,0,0,0,0,0,0,0,0,0,0]
[]
[null,"Tableau du nombre d'heure par avion et par pilote en Vol"]
[]
[null,null,"F 7X","F 900 Ez","F 2000 Ez","F 8X","F 900B & Ex","F 2000","F 50","F 20","ATO"]
[null,"PMI",{"$f":"SUM(M43:W43)","v":24.8},{"$f":"SUM(X43:AH43)","v":36.299999999999997},{"$f":"SUM(AI43:AS43)","v":27.999999999999996},{"$f":"SUM(AT43:BD43)","v":0},{"$f":"SUM(BE43:BO43)","v":2.8},{"$f":"SUM(BP43:BZ43)","v":4.3},{"$f":"SUM(CA43:CK43)","v":2.8},{"$f":"SUM(CL43:CV43)","v":0},{"$f":"CW43","v":0}]
[null,"PGU",{"$f":"SUM(M44:W44)","v":23},6.3,{"$f":"SUM(AI44:AS44)","v":10.9},{"$f":"SUM(AT44:BD44)","v":0},{"$f":"SUM(BE44:BO44)","v":1.6},{"$f":"SUM(BP44:BZ44)","v":0},{"$f":"SUM(CA44:CK44)","v":0},{"$f":"SUM(CL44:CV44)","v":0},{"$f":"CW44","v":24},2,null,"Ré","ato"]
[null,"DBR",19.8,52.1,17.399999999999999,0,9.4,0,4.0999999999999996,0,25.9,"7x","9z","2z","5x"]
[null,"OFR",72.5,80.399999999999991,76.100000000000009,0,0,0,0,0,24,50,"9c","2c","8x"]
[null,"JPL",81.499999999999986,31.3,55.2,0,0,0,0,0,1.8]
[null,"OPE",40.699999999999989,45.199999999999996,85.1,0,0,0,0,0,5.7]
[null,"MDU",66.2,24.6,34.6,0,2.6,1,3.4,0,15.4]
[null,"PCA",46.9,13.8,74.599999999999994,0,5.2,0,8.5,0,3.6]
[null,"BSE",{"$f":"SUM(M51:W51)","v":0},{"$f":"SUM(X51:AH51)","v":0},{"$f":"SUM(AI51:AS51)","v":0},{"$f":"SUM(AT51:BD51)","v":0},{"$f":"SUM(BE51:BO51)","v":0},{"$f":"SUM(BP51:BZ51)","v":0},{"$f":"SUM(CA51:CK51)","v":0},{"$f":"SUM(CL51:CV51)","v":0},0]
[null,null,0,0,0,0,0,0,0,0,0]
[]
[null,null,null,null,null,null,null,null,null,"Vols","Totaux/pilote","PMI",{"$f":"C70+D70+E70+F70+G70+H70+I70+J70+K70","v":98.999999999999986}]
[null,null,null,null,null,null,null,null,null,null,null,"PGU",{"$f":"C71+D71+E71+F71+G71+H71+I71+J71+K71","v":65.800000000000011}]
[null,null,null,null,null,null,null,null,null,null,null,"DBR",128.70000000000002]
[null,null,null,null,null,null,null,null,null,null,null,"OFR",253]
[null,null,null,null,null,null,null,null,null,null,null,"JPL",169.8]
[null,null,null,null,null,null,null,null,null,null,null,"OPE",176.69999999999996]
[null,null,null,null,null,null,null,null,null,null,null,"MDU",147.80000000000001]
[null,null,null,null,null,null,null,null,null,null,null,"PCA",152.6]
[null,"Tableau du nombre d'heure par avion et par pilote en Simulation",null,null,null,null,null,null,null,null,null,"BSE",0]
[null,null,null,null,null,null,null,null,null,null,null,null,0,null,{"$f":"M81+M82+M83+M84+M85+M86+M87+M88+M89+M90","v":1193.3999999999999}]
[null,null,"F 7X","F 900 Ez","F 2000 Ez","F 8X","F 900B & Ex","F 2000","F 50","F 20"]
[null,"PMI",32,4,6,0,0,8,3,0,null,null,null,null,"Total /","Pilote","PMI",{"$f":"M81+M103","v":152}]
[null,"PGU",3,8,8,0,0,4,0,0,null,null,null,null,null,null,"PGU",{"$f":"M82+M104","v":88.800000000000011}]
[null,"DBR",22,8,8,0,0,4,5.4,0,null,null,null,null,null,null,"DBR",176.10000000000002]
[null,"OFR",7,0,4,0,0,0,0,0,null,null,null,null,null,null,"OFR",264]
[null,"JPL",13,0,12,0,0,0,0,0,null,null,null,null,null,null,"JPL",194.8]
[null,"OPE",0,8,5.5,0,0,0,0,0,null,null,null,null,null,null,"OPE",190.19999999999996]
[null,"MDU",7,12,0,0,0,8,0,0,null,null,null,null,null,null,"MDU",174.8]
[null,"PCA",16,4,4,0,1.9,0,6,0,null,null,null,null,null,null,"PCA",184.5]
[null,"BSE",0,0,0,0,0,0,0,0,null,null,null,null,null,null,"BSE",0]
[null,null,0,0,0,0,0,0,0,0,null,null,null,null,null,null,null,0,null,{"$f":"R92+R93+R94+R95+R96+R97+R98+R99+R100+R101","v":1425.2}]
[]
[null,null,null,null,null,null,null,null,null,"Simu","Totaux/pilote","PMI",{"$f":"C92+D92+E92+F92+G92+H92+I92+J92","v":53}]
[null,null,null,null,null,null,null,null,null,null,null,"PGU",23]
[null,null,null,null,null,null,null,null,null,null,null,"DBR",47.4]
[null,null,null,null,null,null,null,null,null,null,null,"OFR",11]
[null,null,null,null,null,null,null,null,null,null,null,"JPL",25]
[null,null,null,null,null,null,null,null,null,null,null,"OPE",13.5]
[null,null,null,null,null,null,null,null,null,null,null,"MDU",27]
[null,null,null,null,null,null,null,null,null,null,null,"PCA",31.9]
[null,null,null,null,null,null,null,null,null,null,null,"BSE",0]
[null,null,null,null,null,null,null,null,null,null,null,null,0,null,{"$f":"M103+M104+M105+M106+M107+M108+M109+M110+M111+M112","v":231.8}]
[null,null,null,null,null,null,null,null,null,null,null,null,null,"soit",{"$f":"O112/4","v":57.95},"jours"]
[]
[]
[null,null,null,null,null,"en cours d'élaboration"]
[]
[null,"Tableau du nombre  d'heure par Type d'activité"]
[null,"Démo","Contractuel","Support","Training","Maintenance","Factory","X Statique","Yconvoyage","Presidence","Livraison","VHL Ato"]
[null,{"$f":"M65+X65+AI65+AT65+BE65+BP65+CA65+CL65+CY65","v":278.39999999999998},0,321,167.6,66.7,9.1999999999999993,0,126.5,121.5,0]
[]
[]
[]
[null,"Tableau du nombre  de Jour par Type d'activité"]
[null,"Démo","Contractuel","Support","Training","Maintenance","Factory","X Statique","Yconvoyage","Presidence","Livraison","VHL Ato"]
[null,{"$f":"M34+X34+AI34+AT34+BE34+BP34+CA34+CL34+CY34","v":69},0,91,206,38,6,2,40,22,0]